Workbook

Sheet CALCULADORA
B2: CALCULADORA CASAN COMERCIAL
B3: DIGITE O VOLUME CONSUMIDO EM m³
B4: 0
B5: DIGITE O NÚMERO DE UNIDADES CONSUMIDORAS
B6: 0
B9: FATURA ATUAL COM NOVA ESTRUTURA (R$)
B10: 0 | D10: 462.8
B11: Tarifa fixa (TFDI) + Volume medido
B12: FATURA NO CASO DE APLICAÇÃO DA DECISÃO JUDICIAL (R$) | D12: 462.8
B13: 0 | D13: 462.8
B14: FATURA ANTERIOR (somente água) | D14: 92.56
B15: 0 | D15: 92.56
D16: 324.5
B17: CALCULADORA COM RESULTADOS PARA SOMENTE ÁGUA. * CASO SUA RESIDÊNCIA/CONDOMÍNIO POSSUA O SERVIÇO DE COLETA E TRATAMENTO DE ESGOTO, O VALOR CALCULADO DEVERÁ SER MULTIPLICADO POR 2. | D17: 324.5

Sheet ESTRUTURA TARIFÁRIA ATUAL
DI1: CONDOMÍNIO em FLORIANÓPOLIS (caso real)
C2: =CALCULADORA!B6 -> 0 | D2: ECONOMIAS | DC2: CONSUMO: | DK2: 113 ECONOMIAS | DM2: CONSUMO:
A3: COMERCIAL | B3: Consumo Mínimo = | D3: 66.7 | E3: 0 | G3: 1 | I3: 2 | K3: 3 | M3: 4 | O3: 5 | Q3: 6 | S3: 7 | U3: 8 | W3: 9 | Y3: 10 | AA3: 11 | AC3: 12 | AE3: 13 | AG3: 14 | AI3: 15 | AK3: 16 | AM3: 17 | AO3: 18 | AQ3: 19 | AS3: 20 | AU3: 21 | AW3: 22 | AY3: 23 | BA3: 24 | BC3: 25 | BE3: 26 | BG3: 27 | BI3: 28 | BK3: 29 | BM3: 30 | BO3: 31 | BQ3: 32 | BS3: 33 | BU3: 34 | BW3: 35 | BY3: 36 | CA3: 37 | CC3: 38 | CE3: 39 | CG3: 40 | CI3: 41 | CK3: 42 | CM3: 43 | CO3: 44 | CQ3: 45 | CS3: 46 | CU3: 47 | CW3: 48 | CY3: 49 | DA3: 50 | DC3: =CALCULADORA!B4 -> 0 | DD3: m³ | DI3: RESIDENCIAL | DJ3: Consumo Mínimo = 113x | DL3: 46.282 | DM3: 1080 m³
B4: Faixa | D4: Valor/m³ | E4: Consumo na Faixa | F4: Valor total | G4: Consumo na Faixa | H4: Valor total | I4: Consumo na Faixa | J4: Valor total | K4: Consumo na Faixa | L4: Valor total | M4: Consumo na Faixa | N4: Valor total | O4: Consumo na Faixa | P4: Valor total | Q4: Consumo na Faixa | R4: Valor total | S4: Consumo na Faixa | T4: Valor total | U4: Consumo na Faixa | V4: Valor total | W4: Consumo na Faixa | X4: Valor total | Y4: Consumo na Faixa | Z4: Valor total | AA4: Consumo na Faixa | AB4: Valor total | AC4: Consumo na Faixa | AD4: Valor total | AE4: Consumo na Faixa | AF4: Valor total | AG4: Consumo na Faixa | AH4: Valor total | AI4: Consumo na Faixa | AJ4: Valor total | AK4: Consumo na Faixa | AL4: Valor total | AM4: Consumo na Faixa | AN4: Valor total | AO4: Consumo na Faixa | AP4: Valor total | AQ4: Consumo na Faixa | AR4: Valor total | AS4: Consumo na Faixa | AT4: Valor total | AU4: Consumo na Faixa | AV4: Valor total | AW4: Consumo na Faixa | AX4: Valor total | AY4: Consumo na Faixa | AZ4: Valor total | BA4: Consumo na Faixa | BB4: Valor total | BC4: Consumo na Faixa | BD4: Valor total | BE4: Consumo na Faixa | BF4: Valor total | BG4: Consumo na Faixa | BH4: Valor total | BI4: Consumo na Faixa | BJ4: Valor total | BK4: Consumo na Faixa | BL4: Valor total | BM4: Consumo na Faixa | BN4: Valor total | BO4: Consumo na Faixa | BP4: Valor total | BQ4: Consumo na Faixa | BR4: Valor total | BS4: Consumo na Faixa | BT4: Valor total | BU4: Consumo na Faixa | BV4: Valor total | BW4: Consumo na Faixa | BX4: Valor total | BY4: Consumo na Faixa | BZ4: Valor total | CA4: Consumo na Faixa | CB4: Valor total | CC4: Consumo na Faixa | CD4: Valor total | CE4: Consumo na Faixa | CF4: Valor total | CG4: Consumo na Faixa | CH4: Valor total | CI4: Consumo na Faixa | CJ4: Valor total | CK4: Consumo na Faixa | CL4: Valor total | CM4: Consumo na Faixa | CN4: Valor total | CO4: Consumo na Faixa | CP4: Valor total | CQ4: Consumo na Faixa | CR4: Valor total | CS4: Consumo na Faixa | CT4: Valor total | CU4: Consumo na Faixa | CV4: Valor total | CW4: Consumo na Faixa | CX4: Valor total | CY4: Consumo na Faixa | CZ4: Valor total | DA4: Consumo na Faixa | DB4: Valor total | DC4: Consumo na Faixa | DD4: Valor total | DF4: Simulação estrutura tarifária anterior. | DJ4: Faixa | DL4: Valor/m³ | DM4: Consumo na Faixa | DN4: Valor total | DQ4: tabela de apoio
B5: 0 | C5: 10 | D5: 6.67 | E5: 0 | F5: =E5*$D$20 -> 0 | G5: 1 | H5: =G5*$D$20 -> 6.67 | I5: 2 | J5: =I5*$D$20 -> 13.34 | K5: 3 | L5: =K5*$D$20 -> 20.01 | M5: 4 | N5: =M5*$D$20 -> 26.68 | O5: 5 | P5: =O5*$D$20 -> 33.35 | Q5: 6 | R5: =Q5*$D$20 -> 40.02 | S5: 7 | T5: =S5*$D$20 -> 46.69 | U5: 8 | V5: =U5*$D$20 -> 53.36 | W5: 9 | X5: =W5*$D$20 -> 60.03 | Y5: 10 | Z5: =Y5*$D$20 -> 66.7 | AA5: 10 | AB5: =AA5*$D$20 -> 66.7 | AC5: 10 | AD5: =AC5*$D$20 -> 66.7 | AE5: 10 | AF5: =AE5*$D$20 -> 66.7 | AG5: 10 | AH5: =AG5*$D$20 -> 66.7 | AI5: 10 | AJ5: =AI5*$D$20 -> 66.7 | AK5: 10 | AL5: =AK5*$D$20 -> 66.7 | AM5: 10 | AN5: =AM5*$D$20 -> 66.7 | AO5: 10 | AP5: =AO5*$D$20 -> 66.7 | AQ5: 10 | AR5: =AQ5*$D$20 -> 66.7 | AS5: 10 | AT5: =AS5*$D$20 -> 66.7 | AU5: 10 | AV5: =AU5*$D$20 -> 66.7 | AW5: 10 | AX5: =AW5*$D$20 -> 66.7 | AY5: 10 | AZ5: =AY5*$D$20 -> 66.7 | BA5: 10 | BB5: =BA5*$D$20 -> 66.7 | BC5: 10 | BD5: =BC5*$D$20 -> 66.7 | BE5: 10 | BF5: =BE5*$D$20 -> 66.7 | BG5: 10 | BH5: =BG5*$D$20 -> 66.7 | BI5: 10 | BJ5: =BI5*$D$20 -> 66.7 | BK5: 10 | BL5: =BK5*$D$20 -> 66.7 | BM5: 10 | BN5: =BM5*$D$20 -> 66.7 | BO5: 10 | BP5: =BO5*$D$20 -> 66.7 | BQ5: 10 | BR5: =BQ5*$D$20 -> 66.7 | BS5: 10 | BT5: =BS5*$D$20 -> 66.7 | BU5: 10 | BV5: =BU5*$D$20 -> 66.7 | BW5: 10 | BX5: =BW5*$D$20 -> 66.7 | BY5: 10 | BZ5: =BY5*$D$20 -> 66.7 | CA5: 10 | CB5: =CA5*$D$20 -> 66.7 | CC5: 10 | CD5: =CC5*$D$20 -> 66.7 | CE5: 10 | CF5: =CE5*$D$20 -> 66.7 | CG5: 10 | CH5: =CG5*$D$20 -> 66.7 | CI5: 10 | CJ5: =CI5*$D$20 -> 66.7 | CK5: 10 | CL5: =CK5*$D$20 -> 66.7 | CM5: 10 | CN5: =CM5*$D$20 -> 66.7 | CO5: 10 | CP5: =CO5*$D$20 -> 66.7 | CQ5: 10 | CR5: =CQ5*$D$20 -> 66.7 | CS5: 10 | CT5: =CS5*$D$20 -> 66.7 | CU5: 10 | CV5: =CU5*$D$20 -> 66.7 | CW5: 10 | CX5: =CW5*$D$20 -> 66.7 | CY5: 10 | CZ5: =CY5*$D$20 -> 66.7 | DA5: 10 | DB5: =DA5*$D$20 -> 66.7 | DC5: =DQ5 -> 0 | DD5: =DC5*$D$5 -> 0 | DH5: 5 | DJ5: 0 | DK5: 10 | DL5: 4.628 | DM5: =10*113 -> 1130 | DN5: =DM5*$D$5 -> 7537.1 | DQ5: =C5*C2 -> 0 | DR5: consumo faixa 01
B6: 10 | C6: 25 | D6: 11.0681 | F6: =E6*$D$21 -> 0 | H6: =G6*$D$21 -> 0 | J6: =I6*$D$21 -> 0 | L6: =K6*$D$21 -> 0 | N6: =M6*$D$21 -> 0 | P6: =O6*$D$21 -> 0 | R6: =Q6*$D$21 -> 0 | T6: =S6*$D$21 -> 0 | V6: =U6*$D$21 -> 0 | X6: =W6*$D$21 -> 0 | Z6: =Y6*$D$21 -> 0 | AA6: 1 | AB6: =AA6*$D$21 -> 11.0681 | AC6: 2 | AD6: =AC6*$D$21 -> 22.1362 | AE6: 3 | AF6: =AE6*$D$21 -> 33.2043 | AG6: 4 | AH6: =AG6*$D$21 -> 44.2724 | AI6: 5 | AJ6: =AI6*$D$21 -> 55.3405 | AK6: 6 | AL6: =AK6*$D$21 -> 66.4086 | AM6: 7 | AN6: =AM6*$D$21 -> 77.4767 | AO6: 8 | AP6: =AO6*$D$21 -> 88.5448 | AQ6: 9 | AR6: =AQ6*$D$21 -> 99.6129 | AS6: 10 | AT6: =AS6*$D$21 -> 110.681 | AU6: 11 | AV6: =AU6*$D$21 -> 121.7491 | AW6: 12 | AX6: =AW6*$D$21 -> 132.8172 | AY6: 13 | AZ6: =AY6*$D$21 -> 143.8853 | BA6: 14 | BB6: =BA6*$D$21 -> 154.9534 | BC6: 15 | BD6: =BC6*$D$21 -> 166.0215 | BE6: 15 | BF6: =BE6*$D$21 -> 166.0215 | BG6: 15 | BH6: =BG6*$D$21 -> 166.0215 | BI6: 15 | BJ6: =BI6*$D$21 -> 166.0215 | BK6: 15 | BL6: =BK6*$D$21 -> 166.0215 | BM6: 15 | BN6: =BM6*$D$21 -> 166.0215 | BO6: 15 | BP6: =BO6*$D$21 -> 166.0215 | BQ6: 15 | BR6: =BQ6*$D$21 -> 166.0215 | BS6: 15 | BT6: =BS6*$D$21 -> 166.0215 | BU6: 15 | BV6: =BU6*$D$21 -> 166.0215 | BW6: 15 | BX6: =BW6*$D$21 -> 166.0215 | BY6: 15 | BZ6: =BY6*$D$21 -> 166.0215 | CA6: 15 | CB6: =CA6*$D$21 -> 166.0215 | CC6: 15 | CD6: =CC6*$D$21 -> 166.0215 | CE6: 15 | CF6: =CE6*$D$21 -> 166.0215 | CG6: 15 | CH6: =CG6*$D$21 -> 166.0215 | CI6: 15 | CJ6: =CI6*$D$21 -> 166.0215 | CK6: 15 | CL6: =CK6*$D$21 -> 166.0215 | CM6: 15 | CN6: =CM6*$D$21 -> 166.0215 | CO6: 15 | CP6: =CO6*$D$21 -> 166.0215 | CQ6: 15 | CR6: =CQ6*$D$21 -> 166.0215 | CS6: 15 | CT6: =CS6*$D$21 -> 166.0215 | CU6: 15 | CV6: =CU6*$D$21 -> 166.0215 | CW6: 15 | CX6: =CW6*$D$21 -> 166.0215 | CY6: 15 | CZ6: =CY6*$D$21 -> 166.0215 | DA6: 15 | DB6: =DA6*$D$21 -> 166.0215 | DC6: =IF($DC$3<=$DQ$5,0,IF($DC$3>($DQ$5+$DQ$6),$DQ$6,IF($DC$3>$DQ$5,($DC$3-$DQ$5)))) -> 0 | DD6: =DC6*$D$21 -> 0 | DH6: 6 | DJ6: 11 | DK6: 25 | DL6: 8.1217 | DN6: =DM6*$D$21 -> 0 | DQ6: =15*C2 -> 0 | DR6: consumo faixa 02
B7: 25 | C7: 50 | D7: 11.0681 | F7: =E7*$D$22 -> 0 | H7: =G7*$D$22 -> 0 | J7: =I7*$D$22 -> 0 | L7: =K7*$D$22 -> 0 | N7: =M7*$D$22 -> 0 | P7: =O7*$D$22 -> 0 | R7: =Q7*$D$22 -> 0 | T7: =S7*$D$22 -> 0 | V7: =U7*$D$22 -> 0 | X7: =W7*$D$22 -> 0 | Z7: =Y7*$D$22 -> 0 | AB7: =AA7*$D$22 -> 0 | AD7: =AC7*$D$22 -> 0 | AF7: =AE7*$D$22 -> 0 | AH7: =AG7*$D$22 -> 0 | AJ7: =AI7*$D$22 -> 0 | AL7: =AK7*$D$22 -> 0 | AN7: =AM7*$D$22 -> 0 | AP7: =AO7*$D$22 -> 0 | AR7: =AQ7*$D$22 -> 0 | AT7: =AS7*$D$22 -> 0 | AV7: =AU7*$D$22 -> 0 | AX7: =AW7*$D$22 -> 0 | AZ7: =AY7*$D$22 -> 0 | BB7: =BA7*$D$22 -> 0 | BD7: =BC7*$D$22 -> 0 | BE7: 1 | BF7: =BE7*$D$22 -> 11.0681 | BG7: 2 | BH7: =BG7*$D$22 -> 22.1362 | BI7: 3 | BJ7: =BI7*$D$22 -> 33.2043 | BK7: 4 | BL7: =BK7*$D$22 -> 44.2724 | BM7: 5 | BN7: =BM7*$D$22 -> 55.3405 | BO7: 6 | BP7: =BO7*$D$22 -> 66.4086 | BQ7: 7 | BR7: =BQ7*$D$22 -> 77.4767 | BS7: 8 | BT7: =BS7*$D$22 -> 88.5448 | BU7: 9 | BV7: =BU7*$D$22 -> 99.6129 | BW7: 10 | BX7: =BW7*$D$22 -> 110.681 | BY7: 11 | BZ7: =BY7*$D$22 -> 121.7491 | CA7: 12 | CB7: =CA7*$D$22 -> 132.8172 | CC7: 13 | CD7: =CC7*$D$22 -> 143.8853 | CE7: 14 | CF7: =CE7*$D$22 -> 154.9534 | CG7: 15 | CH7: =CG7*$D$22 -> 166.0215 | CI7: 16 | CJ7: =CI7*$D$22 -> 177.0896 | CK7: 17 | CL7: =CK7*$D$22 -> 188.1577 | CM7: 18 | CN7: =CM7*$D$22 -> 199.2258 | CO7: 19 | CP7: =CO7*$D$22 -> 210.2939 | CQ7: 20 | CR7: =CQ7*$D$22 -> 221.362 | CS7: 21 | CT7: =CS7*$D$22 -> 232.4301 | CU7: 22 | CV7: =CU7*$D$22 -> 243.4982 | CW7: 23 | CX7: =CW7*$D$22 -> 254.5663 | CY7: 24 | CZ7: =CY7*$D$22 -> 265.6344 | DA7: 25 | DB7: =DA7*$D$22 -> 276.7025 | DC7: =IF($DC$3<($DQ$5+$DQ$6),0,IF($DC$3<=$DQ$5,0,IF($DC$3>($DQ$5+$DQ$6+DQ7),DQ7,IF($DC$3>$DQ$6,$DC$3-DQ5-DQ6)))) -> 0 | DD7: =DC7*$D$22 -> 0 | DH7: 7 | DJ7: 26 | DK7: 50 | DL7: 11.3741 | DN7: =DM7*$D$22 -> 0 | DQ7: =25*C2 -> 0 | DR7: consumo faixa 03
B8: 51 | C8: 9999 | D8: 13.9229 | F8: =E8*$D$23 -> 0 | H8: =G8*$D$23 -> 0 | J8: =I8*$D$23 -> 0 | L8: =K8*$D$23 -> 0 | N8: =M8*$D$23 -> 0 | P8: =O8*$D$23 -> 0 | R8: =Q8*$D$23 -> 0 | T8: =S8*$D$23 -> 0 | V8: =U8*$D$23 -> 0 | X8: =W8*$D$23 -> 0 | Z8: =Y8*$D$23 -> 0 | AB8: =AA8*$D$23 -> 0 | AD8: =AC8*$D$23 -> 0 | AF8: =AE8*$D$23 -> 0 | AH8: =AG8*$D$23 -> 0 | AJ8: =AI8*$D$23 -> 0 | AL8: =AK8*$D$23 -> 0 | AN8: =AM8*$D$23 -> 0 | AP8: =AO8*$D$23 -> 0 | AR8: =AQ8*$D$23 -> 0 | AT8: =AS8*$D$23 -> 0 | AV8: =AU8*$D$23 -> 0 | AX8: =AW8*$D$23 -> 0 | AZ8: =AY8*$D$23 -> 0 | BB8: =BA8*$D$23 -> 0 | BD8: =BC8*$D$23 -> 0 | BF8: =BE8*$D$23 -> 0 | BH8: =BG8*$D$23 -> 0 | BJ8: =BI8*$D$23 -> 0 | BL8: =BK8*$D$23 -> 0 | BN8: =BM8*$D$23 -> 0 | BP8: =BO8*$D$23 -> 0 | BR8: =BQ8*$D$23 -> 0 | BT8: =BS8*$D$23 -> 0 | BV8: =BU8*$D$23 -> 0 | BX8: =BW8*$D$23 -> 0 | BZ8: =BY8*$D$23 -> 0 | CB8: =CA8*$D$23 -> 0 | CD8: =CC8*$D$23 -> 0 | CF8: =CE8*$D$23 -> 0 | CH8: =CG8*$D$23 -> 0 | CJ8: =CI8*$D$23 -> 0 | CL8: =CK8*$D$23 -> 0 | CN8: =CM8*$D$23 -> 0 | CP8: =CO8*$D$23 -> 0 | CR8: =CQ8*$D$23 -> 0 | CT8: =CS8*$D$23 -> 0 | CV8: =CU8*$D$23 -> 0 | CX8: =CW8*$D$23 -> 0 | CZ8: =CY8*$D$23 -> 0 | DB8: =DA8*$D$23 -> 0 | DC8: =IF($DQ$8>=0,$DQ$8,0) -> 0 | DD8: =DC8*$D$23 -> 0 | DJ8: 51 | DK8: 9999 | DL8: 13.6197 | DN8: =DM8*$D$23 -> 0 | DQ8: =IF(DQ7=0,0,IF((DC3-DQ5-DQ6-DQ7)<=0,0,IF((DC3-DQ5-DQ6-DQ7)>0,(DC3-DQ5-DQ6-DQ7)))) -> 0 | DR8: consumo acima da faixa 03
B9: SUBTOTAL | F9: =SUM(F5:F8) -> 0 | H9: =SUM(H5:H8) -> 6.67 | J9: =SUM(J5:J8) -> 13.34 | L9: =SUM(L5:L8) -> 20.01 | N9: =SUM(N5:N8) -> 26.68 | P9: =SUM(P5:P8) -> 33.35 | R9: =SUM(R5:R8) -> 40.02 | T9: =SUM(T5:T8) -> 46.69 | V9: =SUM(V5:V8) -> 53.36 | X9: =SUM(X5:X8) -> 60.03 | Z9: =SUM(Z5:Z8) -> 66.7 | AB9: =SUM(AB5:AB8) -> 77.7681 | AD9: =SUM(AD5:AD8) -> 88.8362 | AF9: =SUM(AF5:AF8) -> 99.9043 | AH9: =SUM(AH5:AH8) -> 110.9724 | AJ9: =SUM(AJ5:AJ8) -> 122.0405 | AL9: =SUM(AL5:AL8) -> 133.1086 | AN9: =SUM(AN5:AN8) -> 144.1767 | AP9: =SUM(AP5:AP8) -> 155.2448 | AR9: =SUM(AR5:AR8) -> 166.3129 | AT9: =SUM(AT5:AT8) -> 177.381 | AV9: =SUM(AV5:AV8) -> 188.4491 | AX9: =SUM(AX5:AX8) -> 199.5172 | AZ9: =SUM(AZ5:AZ8) -> 210.5853 | BB9: =SUM(BB5:BB8) -> 221.6534 | BD9: =SUM(BD5:BD8) -> 232.7215 | BF9: =SUM(BF5:BF8) -> 243.7896 | BH9: =SUM(BH5:BH8) -> 254.8577 | BJ9: =SUM(BJ5:BJ8) -> 265.9258 | BL9: =SUM(BL5:BL8) -> 276.9939 | BN9: =SUM(BN5:BN8) -> 288.062 | BP9: =SUM(BP5:BP8) -> 299.1301 | BR9: =SUM(BR5:BR8) -> 310.1982 | BT9: =SUM(BT5:BT8) -> 321.2663 | BV9: =SUM(BV5:BV8) -> 332.3344 | BX9: =SUM(BX5:BX8) -> 343.4025 | BZ9: =SUM(BZ5:BZ8) -> 354.4706 | CB9: =SUM(CB5:CB8) -> 365.5387 | CD9: =SUM(CD5:CD8) -> 376.6068 | CF9: =SUM(CF5:CF8) -> 387.6749 | CH9: =SUM(CH5:CH8) -> 398.743 | CJ9: =SUM(CJ5:CJ8) -> 409.8111 | CL9: =SUM(CL5:CL8) -> 420.8792 | CN9: =SUM(CN5:CN8) -> 431.9473 | CP9: =SUM(CP5:CP8) -> 443.0154 | CR9: =SUM(CR5:CR8) -> 454.0835 | CT9: =SUM(CT5:CT8) -> 465.1516 | CV9: =SUM(CV5:CV8) -> 476.2197 | CX9: =SUM(CX5:CX8) -> 487.2878 | CZ9: =SUM(CZ5:CZ8) -> 498.3559 | DB9: =SUM(DB5:DB8) -> 509.424 | DD9: =SUM(DD5:DD8) -> 0 | DJ9: SUBTOTAL | DN9: =SUM(DN5:DN8) -> 7537.1
B10: TOTAL | F10: =IF((F9<=$D$18),$D$18,F9) -> 66.7 | H10: =IF((H9<=$D$18),$D$18,H9) -> 66.7 | J10: =IF((J9<=$D$18),$D$18,J9) -> 66.7 | L10: =IF((L9<=$D$18),$D$18,L9) -> 66.7 | N10: =IF((N9<=$D$18),$D$18,N9) -> 66.7 | P10: =IF((P9<=$D$18),$D$18,P9) -> 66.7 | R10: =IF((R9<=$D$18),$D$18,R9) -> 66.7 | T10: =IF((T9<=$D$18),$D$18,T9) -> 66.7 | V10: =IF((V9<=$D$18),$D$18,V9) -> 66.7 | X10: =IF((X9<=$D$18),$D$18,X9) -> 66.7 | Z10: =IF((Z9<=$D$18),$D$18,Z9) -> 66.7 | AB10: =IF((AB9<=$D$18),$D$18,AB9) -> 77.7681 | AD10: =IF((AD9<=$D$18),$D$18,AD9) -> 88.8362 | AF10: =IF((AF9<=$D$18),$D$18,AF9) -> 99.9043 | AH10: =IF((AH9<=$D$18),$D$18,AH9) -> 110.9724 | AJ10: =IF((AJ9<=$D$18),$D$18,AJ9) -> 122.0405 | AL10: =IF((AL9<=$D$18),$D$18,AL9) -> 133.1086 | AN10: =IF((AN9<=$D$18),$D$18,AN9) -> 144.1767 | AP10: =IF((AP9<=$D$18),$D$18,AP9) -> 155.2448 | AR10: =IF((AR9<=$D$18),$D$18,AR9) -> 166.3129 | AT10: =IF((AT9<=$D$18),$D$18,AT9) -> 177.381 | AV10: =IF((AV9<=$D$18),$D$18,AV9) -> 188.4491 | AX10: =IF((AX9<=$D$18),$D$18,AX9) -> 199.5172 | AZ10: =IF((AZ9<=$D$18),$D$18,AZ9) -> 210.5853 | BB10: =IF((BB9<=$D$18),$D$18,BB9) -> 221.6534 | BD10: =IF((BD9<=$D$18),$D$18,BD9) -> 232.7215 | BF10: =IF((BF9<=$D$18),$D$18,BF9) -> 243.7896 | BH10: =IF((BH9<=$D$18),$D$18,BH9) -> 254.8577 | BJ10: =IF((BJ9<=$D$18),$D$18,BJ9) -> 265.9258 | BL10: =IF((BL9<=$D$18),$D$18,BL9) -> 276.9939 | BN10: =IF((BN9<=$D$18),$D$18,BN9) -> 288.062 | BP10: =IF((BP9<=$D$18),$D$18,BP9) -> 299.1301 | BR10: =IF((BR9<=$D$18),$D$18,BR9) -> 310.1982 | BT10: =IF((BT9<=$D$18),$D$18,BT9) -> 321.2663 | BV10: =IF((BV9<=$D$18),$D$18,BV9) -> 332.3344 | BX10: =IF((BX9<=$D$18),$D$18,BX9) -> 343.4025 | BZ10: =IF((BZ9<=$D$18),$D$18,BZ9) -> 354.4706 | CB10: =IF((CB9<=$D$18),$D$18,CB9) -> 365.5387 | CD10: =IF((CD9<=$D$18),$D$18,CD9) -> 376.6068 | CF10: =IF((CF9<=$D$18),$D$18,CF9) -> 387.6749 | CH10: =IF((CH9<=$D$18),$D$18,CH9) -> 398.743 | CJ10: =IF((CJ9<=$D$18),$D$18,CJ9) -> 409.8111 | CL10: =IF((CL9<=$D$18),$D$18,CL9) -> 420.8792 | CN10: =IF((CN9<=$D$18),$D$18,CN9) -> 431.9473 | CP10: =IF((CP9<=$D$18),$D$18,CP9) -> 443.0154 | CR10: =IF((CR9<=$D$18),$D$18,CR9) -> 454.0835 | CT10: =IF((CT9<=$D$18),$D$18,CT9) -> 465.1516 | CV10: =IF((CV9<=$D$18),$D$18,CV9) -> 476.2197 | CX10: =IF((CX9<=$D$18),$D$18,CX9) -> 487.2878 | CZ10: =IF((CZ9<=$D$18),$D$18,CZ9) -> 498.3559 | DB10: =IF((DB9<=$D$18),$D$18,DB9) -> 509.424 | DD10: =IF((DD9<=$D$3),$D$3*C2,DD9) -> 0 | DJ10: TOTAL | DN10: =IF((DN9<=$D$18),$D$18,DN9) -> 7537.1
B11: FATURAMENTO DE ÁGUA | F11: =F10 -> 66.7 | H11: =H10 -> 66.7 | J11: =J10 -> 66.7 | L11: =L10 -> 66.7 | N11: =N10 -> 66.7 | P11: =P10 -> 66.7 | R11: =R10 -> 66.7 | T11: =T10 -> 66.7 | V11: =V10 -> 66.7 | X11: =X10 -> 66.7 | Z11: =Z10 -> 66.7 | AB11: =AB10 -> 77.7681 | AD11: =AD10 -> 88.8362 | AF11: =AF10 -> 99.9043 | AH11: =AH10 -> 110.9724 | AJ11: =AJ10 -> 122.0405 | AL11: =AL10 -> 133.1086 | AN11: =AN10 -> 144.1767 | AP11: =AP10 -> 155.2448 | AR11: =AR10 -> 166.3129 | AT11: =AT10 -> 177.381 | AV11: =AV10 -> 188.4491 | AX11: =AX10 -> 199.5172 | AZ11: =AZ10 -> 210.5853 | BB11: =BB10 -> 221.6534 | BD11: =BD10 -> 232.7215 | BF11: =BF10 -> 243.7896 | BH11: =BH10 -> 254.8577 | BJ11: =BJ10 -> 265.9258 | BL11: =BL10 -> 276.9939 | BN11: =BN10 -> 288.062 | BP11: =BP10 -> 299.1301 | BR11: =BR10 -> 310.1982 | BT11: =BT10 -> 321.2663 | BV11: =BV10 -> 332.3344 | BX11: =BX10 -> 343.4025 | BZ11: =BZ10 -> 354.4706 | CB11: =CB10 -> 365.5387 | CD11: =CD10 -> 376.6068 | CF11: =CF10 -> 387.6749 | CH11: =CH10 -> 398.743 | CJ11: =CJ10 -> 409.8111 | CL11: =CL10 -> 420.8792 | CN11: =CN10 -> 431.9473 | CP11: =CP10 -> 443.0154 | CR11: =CR10 -> 454.0835 | CT11: =CT10 -> 465.1516 | CV11: =CV10 -> 476.2197 | CX11: =CX10 -> 487.2878 | CZ11: =CZ10 -> 498.3559 | DB11: =DB10 -> 509.424 | DD11: =DD10 -> 0 | DJ11: FATURAMENTO DE ÁGUA | DN11: =DN10 -> 7537.1
B12: FATURAMENTO ESGOTO 100% | F12: =F11 -> 66.7 | H12: =H11 -> 66.7 | J12: =J11 -> 66.7 | L12: =L11 -> 66.7 | N12: =N11 -> 66.7 | P12: =P11 -> 66.7 | R12: =R11 -> 66.7 | T12: =T11 -> 66.7 | V12: 66.7 | X12: 66.7 | Z12: 66.7 | AB12: 77.7681 | AD12: 88.8362 | AF12: 99.9043 | AH12: =AH11 -> 110.9724 | AJ12: =AJ11 -> 122.0405 | AL12: =AL11 -> 133.1086 | AN12: =AN11 -> 144.1767 | AP12: 155.2448 | AR12: 166.3129 | AT12: =AT11 -> 177.381 | AV12: =AV11 -> 188.4491 | AX12: =AX11 -> 199.5172 | AZ12: =AZ11 -> 210.5853 | BB12: 221.6534 | BD12: 232.7215 | BF12: =BF11 -> 243.7896 | BH12: =BH11 -> 254.8577 | BJ12: =BJ11 -> 265.9258 | BL12: =BL11 -> 276.9939 | BN12: 288.062 | BP12: 299.1301 | BR12: =BR11 -> 310.1982 | BT12: =BT11 -> 321.2663 | BV12: =BV11 -> 332.3344 | BX12: =BX11 -> 343.4025 | BZ12: 354.4706 | CB12: 365.5387 | CD12: =CD11 -> 376.6068 | CF12: =CF11 -> 387.6749 | CH12: =CH11 -> 398.743 | CJ12: =CJ11 -> 409.8111 | CL12: 420.8792 | CN12: 431.9473 | CP12: =CP11 -> 443.0154 | CR12: =CR11 -> 454.0835 | CT12: =CT11 -> 465.1516 | CV12: =CV11 -> 476.2197 | CX12: 487.2878 | CZ12: 498.3559 | DB12: =DB11 -> 509.424 | DD12: =DD11 -> 0 | DJ12: FATURAMENTO ESGOTO 100% | DN12: 7537.1
B13: VALOR TOTAL DA FATURA | F13: =F11+F12 -> 133.4 | H13: =H11+H12 -> 133.4 | J13: =J11+J12 -> 133.4 | L13: =L11+L12 -> 133.4 | N13: =N11+N12 -> 133.4 | P13: =P11+P12 -> 133.4 | R13: =R11+R12 -> 133.4 | T13: =T11+T12 -> 133.4 | V13: =V11+V12 -> 133.4 | X13: =X11+X12 -> 133.4 | Z13: =Z11+Z12 -> 133.4 | AB13: =AB11+AB12 -> 155.5362 | AD13: =AD11+AD12 -> 177.6724 | AF13: =AF11+AF12 -> 199.8086 | AH13: =AH11+AH12 -> 221.9448 | AJ13: =AJ11+AJ12 -> 244.081 | AL13: =AL11+AL12 -> 266.2172 | AN13: =AN11+AN12 -> 288.3534 | AP13: =AP11+AP12 -> 310.4896 | AR13: =AR11+AR12 -> 332.6258 | AT13: =AT11+AT12 -> 354.762 | AV13: =AV11+AV12 -> 376.8982 | AX13: =AX11+AX12 -> 399.0344 | AZ13: =AZ11+AZ12 -> 421.1706 | BB13: =BB11+BB12 -> 443.3068 | BD13: =BD11+BD12 -> 465.443 | BF13: =BF11+BF12 -> 487.5792 | BH13: =BH11+BH12 -> 509.7154 | BJ13: =BJ11+BJ12 -> 531.8516 | BL13: =BL11+BL12 -> 553.9878 | BN13: =BN11+BN12 -> 576.124 | BP13: =BP11+BP12 -> 598.2602 | BR13: =BR11+BR12 -> 620.3964 | BT13: =BT11+BT12 -> 642.5326 | BV13: =BV11+BV12 -> 664.6688 | BX13: =BX11+BX12 -> 686.805 | BZ13: =BZ11+BZ12 -> 708.9412 | CB13: =CB11+CB12 -> 731.0774 | CD13: =CD11+CD12 -> 753.2136 | CF13: =CF11+CF12 -> 775.3498 | CH13: =CH11+CH12 -> 797.486 | CJ13: =CJ11+CJ12 -> 819.6222 | CL13: =CL11+CL12 -> 841.7584 | CN13: =CN11+CN12 -> 863.8946 | CP13: =CP11+CP12 -> 886.0308 | CR13: =CR11+CR12 -> 908.167 | CT13: =CT11+CT12 -> 930.3032 | CV13: =CV11+CV12 -> 952.4394 | CX13: =CX11+CX12 -> 974.5756 | CZ13: =CZ11+CZ12 -> 996.7118 | DB13: =DB11+DB12 -> 1018.848 | DD13: =DD11+DD12 -> 0 | DJ13: VALOR TOTAL DA FATURA | DN13: =DN11+DN12 -> 15074.2
C17: =CALCULADORA!B6 -> 0 | D17: ECONOMIAS | DC17: CONSUMO: | DF17: Simulação que considera o condomínio uma única unidade. | DQ17: tabela de apoio
A18: COMERCIAL | B18: Consumo Mínimo | D18: 66.7 | E18: 0 | G18: 1 | I18: 2 | K18: 3 | M18: 4 | O18: 5 | Q18: 6 | S18: 7 | U18: 8 | W18: 9 | Y18: 10 | AA18: 11 | AC18: 12 | AE18: 13 | AG18: 14 | AI18: 15 | AK18: 16 | AM18: 17 | AO18: 18 | AQ18: 19 | AS18: 20 | AU18: 21 | AW18: 22 | AY18: 23 | BA18: 24 | BC18: 25 | BE18: 26 | BG18: 27 | BI18: 28 | BK18: 29 | BM18: 30 | BO18: 31 | BQ18: 32 | BS18: 33 | BU18: 34 | BW18: 35 | BY18: 36 | CA18: 37 | CC18: 38 | CE18: 39 | CG18: 40 | CI18: 41 | CK18: 42 | CM18: 43 | CO18: 44 | CQ18: 45 | CS18: 46 | CU18: 47 | CW18: 48 | CY18: 49 | DA18: 50 | DC18: =CALCULADORA!B4 -> 0 | DD18: m³ | DH18: DQ18 | DQ18: =DC18-DC20 -> 0 | DR18: consumo menos faixa 01
B19: Faixa | D19: Valor/m³ | E19: Consumo na Faixa | F19: Valor total | G19: Consumo na Faixa | H19: Valor total | I19: Consumo na Faixa | J19: Valor total | K19: Consumo na Faixa | L19: Valor total | M19: Consumo na Faixa | N19: Valor total | O19: Consumo na Faixa | P19: Valor total | Q19: Consumo na Faixa | R19: Valor total | S19: Consumo na Faixa | T19: Valor total | U19: Consumo na Faixa | V19: Valor total | W19: Consumo na Faixa | X19: Valor total | Y19: Consumo na Faixa | Z19: Valor total | AA19: Consumo na Faixa | AB19: Valor total | AC19: Consumo na Faixa | AD19: Valor total | AE19: Consumo na Faixa | AF19: Valor total | AG19: Consumo na Faixa | AH19: Valor total | AI19: Consumo na Faixa | AJ19: Valor total | AK19: Consumo na Faixa | AL19: Valor total | AM19: Consumo na Faixa | AN19: Valor total | AO19: Consumo na Faixa | AP19: Valor total | AQ19: Consumo na Faixa | AR19: Valor total | AS19: Consumo na Faixa | AT19: Valor total | AU19: Consumo na Faixa | AV19: Valor total | AW19: Consumo na Faixa | AX19: Valor total | AY19: Consumo na Faixa | AZ19: Valor total | BA19: Consumo na Faixa | BB19: Valor total | BC19: Consumo na Faixa | BD19: Valor total | BE19: Consumo na Faixa | BF19: Valor total | BG19: Consumo na Faixa | BH19: Valor total | BI19: Consumo na Faixa | BJ19: Valor total | BK19: Consumo na Faixa | BL19: Valor total | BM19: Consumo na Faixa | BN19: Valor total | BO19: Consumo na Faixa | BP19: Valor total | BQ19: Consumo na Faixa | BR19: Valor total | BS19: Consumo na Faixa | BT19: Valor total | BU19: Consumo na Faixa | BV19: Valor total | BW19: Consumo na Faixa | BX19: Valor total | BY19: Consumo na Faixa | BZ19: Valor total | CA19: Consumo na Faixa | CB19: Valor total | CC19: Consumo na Faixa | CD19: Valor total | CE19: Consumo na Faixa | CF19: Valor total | CG19: Consumo na Faixa | CH19: Valor total | CI19: Consumo na Faixa | CJ19: Valor total | CK19: Consumo na Faixa | CL19: Valor total | CM19: Consumo na Faixa | CN19: Valor total | CO19: Consumo na Faixa | CP19: Valor total | CQ19: Consumo na Faixa | CR19: Valor total | CS19: Consumo na Faixa | CT19: Valor total | CU19: Consumo na Faixa | CV19: Valor total | CW19: Consumo na Faixa | CX19: Valor total | CY19: Consumo na Faixa | CZ19: Valor total | DA19: Consumo na Faixa | DB19: Valor total | DC19: Consumo na Faixa | DD19: Valor total | DH19: DQ19 | DQ19: =DC18-DC20-DC21 -> 0 | DR19: consumo menos faixa 01 e 02
B20: 0 | C20: 10 | D20: 6.67 | E20: 0 | F20: =E20*$D$20 -> 0 | G20: 1 | H20: =G20*$D$20 -> 6.67 | I20: 2 | J20: =I20*$D$20 -> 13.34 | K20: 3 | L20: =K20*$D$20 -> 20.01 | M20: 4 | N20: =M20*$D$20 -> 26.68 | O20: 5 | P20: =O20*$D$20 -> 33.35 | Q20: 6 | R20: =Q20*$D$20 -> 40.02 | S20: 7 | T20: =S20*$D$20 -> 46.69 | U20: 8 | V20: =U20*$D$20 -> 53.36 | W20: 9 | X20: =W20*$D$20 -> 60.03 | Y20: 10 | Z20: =Y20*$D$20 -> 66.7 | AA20: 10 | AB20: =AA20*$D$20 -> 66.7 | AC20: 10 | AD20: =AC20*$D$20 -> 66.7 | AE20: 10 | AF20: =AE20*$D$20 -> 66.7 | AG20: 10 | AH20: =AG20*$D$20 -> 66.7 | AI20: 10 | AJ20: =AI20*$D$20 -> 66.7 | AK20: 10 | AL20: =AK20*$D$20 -> 66.7 | AM20: 10 | AN20: =AM20*$D$20 -> 66.7 | AO20: 10 | AP20: =AO20*$D$20 -> 66.7 | AQ20: 10 | AR20: =AQ20*$D$20 -> 66.7 | AS20: 10 | AT20: =AS20*$D$20 -> 66.7 | AU20: 10 | AV20: =AU20*$D$20 -> 66.7 | AW20: 10 | AX20: =AW20*$D$20 -> 66.7 | AY20: 10 | AZ20: =AY20*$D$20 -> 66.7 | BA20: 10 | BB20: =BA20*$D$20 -> 66.7 | BC20: 10 | BD20: =BC20*$D$20 -> 66.7 | BE20: 10 | BF20: =BE20*$D$20 -> 66.7 | BG20: 10 | BH20: =BG20*$D$20 -> 66.7 | BI20: 10 | BJ20: =BI20*$D$20 -> 66.7 | BK20: 10 | BL20: =BK20*$D$20 -> 66.7 | BM20: 10 | BN20: =BM20*$D$20 -> 66.7 | BO20: 10 | BP20: =BO20*$D$20 -> 66.7 | BQ20: 10 | BR20: =BQ20*$D$20 -> 66.7 | BS20: 10 | BT20: =BS20*$D$20 -> 66.7 | BU20: 10 | BV20: =BU20*$D$20 -> 66.7 | BW20: 10 | BX20: =BW20*$D$20 -> 66.7 | BY20: 10 | BZ20: =BY20*$D$20 -> 66.7 | CA20: 10 | CB20: =CA20*$D$20 -> 66.7 | CC20: 10 | CD20: =CC20*$D$20 -> 66.7 | CE20: 10 | CF20: =CE20*$D$20 -> 66.7 | CG20: 10 | CH20: =CG20*$D$20 -> 66.7 | CI20: 10 | CJ20: =CI20*$D$20 -> 66.7 | CK20: 10 | CL20: =CK20*$D$20 -> 66.7 | CM20: 10 | CN20: =CM20*$D$20 -> 66.7 | CO20: 10 | CP20: =CO20*$D$20 -> 66.7 | CQ20: 10 | CR20: =CQ20*$D$20 -> 66.7 | CS20: 10 | CT20: =CS20*$D$20 -> 66.7 | CU20: 10 | CV20: =CU20*$D$20 -> 66.7 | CW20: 10 | CX20: =CW20*$D$20 -> 66.7 | CY20: 10 | CZ20: =CY20*$D$20 -> 66.7 | DA20: 10 | DB20: =DA20*$D$20 -> 66.7 | DC20: =IF(C17=0,0,IF((DC18)<=10, DC18, 10)) -> 0 | DD20: =DC20*$D$20 -> 0 | DH20: DQ20 | DQ20: =DC18-DC22-DC21-DC20 -> 0 | DR20: consumo menos faixa 01, 02 e 03
B21: 11 | C21: 25 | D21: 11.0681 | F21: =E21*$D$21 -> 0 | H21: =G21*$D$21 -> 0 | J21: =I21*$D$21 -> 0 | L21: =K21*$D$21 -> 0 | N21: =M21*$D$21 -> 0 | P21: =O21*$D$21 -> 0 | R21: =Q21*$D$21 -> 0 | T21: =S21*$D$21 -> 0 | V21: =U21*$D$21 -> 0 | X21: =W21*$D$21 -> 0 | Z21: =Y21*$D$21 -> 0 | AA21: 1 | AB21: =AA21*$D$21 -> 11.0681 | AC21: 2 | AD21: =AC21*$D$21 -> 22.1362 | AE21: 3 | AF21: =AE21*$D$21 -> 33.2043 | AG21: 4 | AH21: =AG21*$D$21 -> 44.2724 | AI21: 5 | AJ21: =AI21*$D$21 -> 55.3405 | AK21: 6 | AL21: =AK21*$D$21 -> 66.4086 | AM21: 7 | AN21: =AM21*$D$21 -> 77.4767 | AO21: 8 | AP21: =AO21*$D$21 -> 88.5448 | AQ21: 9 | AR21: =AQ21*$D$21 -> 99.6129 | AS21: 10 | AT21: =AS21*$D$21 -> 110.681 | AU21: 11 | AV21: =AU21*$D$21 -> 121.7491 | AW21: 12 | AX21: =AW21*$D$21 -> 132.8172 | AY21: 13 | AZ21: =AY21*$D$21 -> 143.8853 | BA21: 14 | BB21: =BA21*$D$21 -> 154.9534 | BC21: 15 | BD21: =BC21*$D$21 -> 166.0215 | BE21: 15 | BF21: =BE21*$D$21 -> 166.0215 | BG21: 15 | BH21: =BG21*$D$21 -> 166.0215 | BI21: 15 | BJ21: =BI21*$D$21 -> 166.0215 | BK21: 15 | BL21: =BK21*$D$21 -> 166.0215 | BM21: 15 | BN21: =BM21*$D$21 -> 166.0215 | BO21: 15 | BP21: =BO21*$D$21 -> 166.0215 | BQ21: 15 | BR21: =BQ21*$D$21 -> 166.0215 | BS21: 15 | BT21: =BS21*$D$21 -> 166.0215 | BU21: 15 | BV21: =BU21*$D$21 -> 166.0215 | BW21: 15 | BX21: =BW21*$D$21 -> 166.0215 | BY21: 15 | BZ21: =BY21*$D$21 -> 166.0215 | CA21: 15 | CB21: =CA21*$D$21 -> 166.0215 | CC21: 15 | CD21: =CC21*$D$21 -> 166.0215 | CE21: 15 | CF21: =CE21*$D$21 -> 166.0215 | CG21: 15 | CH21: =CG21*$D$21 -> 166.0215 | CI21: 15 | CJ21: =CI21*$D$21 -> 166.0215 | CK21: 15 | CL21: =CK21*$D$21 -> 166.0215 | CM21: 15 | CN21: =CM21*$D$21 -> 166.0215 | CO21: 15 | CP21: =CO21*$D$21 -> 166.0215 | CQ21: 15 | CR21: =CQ21*$D$21 -> 166.0215 | CS21: 15 | CT21: =CS21*$D$21 -> 166.0215 | CU21: 15 | CV21: =CU21*$D$21 -> 166.0215 | CW21: 15 | CX21: =CW21*$D$21 -> 166.0215 | CY21: 15 | CZ21: =CY21*$D$21 -> 166.0215 | DA21: 15 | DB21: =DA21*$D$21 -> 166.0215 | DC21: =IF(C17=0,0,IF($DC$18<10,0,IF($DQ$18>15,15,IF(15<$DQ$18>10,$DQ$18)))) -> 0 | DD21: =DC21*$D$21 -> 0 | DR21: consumo acima da faixa 03
B22: 26 | C22: 50 | D22: 11.0681 | F22: =E22*$D$22 -> 0 | H22: =G22*$D$22 -> 0 | J22: =I22*$D$22 -> 0 | L22: =K22*$D$22 -> 0 | N22: =M22*$D$22 -> 0 | P22: =O22*$D$22 -> 0 | R22: =Q22*$D$22 -> 0 | T22: =S22*$D$22 -> 0 | V22: =U22*$D$22 -> 0 | X22: =W22*$D$22 -> 0 | Z22: =Y22*$D$22 -> 0 | AB22: =AA22*$D$22 -> 0 | AD22: =AC22*$D$22 -> 0 | AF22: =AE22*$D$22 -> 0 | AH22: =AG22*$D$22 -> 0 | AJ22: =AI22*$D$22 -> 0 | AL22: =AK22*$D$22 -> 0 | AN22: =AM22*$D$22 -> 0 | AP22: =AO22*$D$22 -> 0 | AR22: =AQ22*$D$22 -> 0 | AT22: =AS22*$D$22 -> 0 | AV22: =AU22*$D$22 -> 0 | AX22: =AW22*$D$22 -> 0 | AZ22: =AY22*$D$22 -> 0 | BB22: =BA22*$D$22 -> 0 | BD22: =BC22*$D$22 -> 0 | BE22: 1 | BF22: =BE22*$D$22 -> 11.0681 | BG22: 2 | BH22: =BG22*$D$22 -> 22.1362 | BI22: 3 | BJ22: =BI22*$D$22 -> 33.2043 | BK22: 4 | BL22: =BK22*$D$22 -> 44.2724 | BM22: 5 | BN22: =BM22*$D$22 -> 55.3405 | BO22: 6 | BP22: =BO22*$D$22 -> 66.4086 | BQ22: 7 | BR22: =BQ22*$D$22 -> 77.4767 | BS22: 8 | BT22: =BS22*$D$22 -> 88.5448 | BU22: 9 | BV22: =BU22*$D$22 -> 99.6129 | BW22: 10 | BX22: =BW22*$D$22 -> 110.681 | BY22: 11 | BZ22: =BY22*$D$22 -> 121.7491 | CA22: 12 | CB22: =CA22*$D$22 -> 132.8172 | CC22: 13 | CD22: =CC22*$D$22 -> 143.8853 | CE22: 14 | CF22: =CE22*$D$22 -> 154.9534 | CG22: 15 | CH22: =CG22*$D$22 -> 166.0215 | CI22: 16 | CJ22: =CI22*$D$22 -> 177.0896 | CK22: 17 | CL22: =CK22*$D$22 -> 188.1577 | CM22: 18 | CN22: =CM22*$D$22 -> 199.2258 | CO22: 19 | CP22: =CO22*$D$22 -> 210.2939 | CQ22: 20 | CR22: =CQ22*$D$22 -> 221.362 | CS22: 21 | CT22: =CS22*$D$22 -> 232.4301 | CU22: 22 | CV22: =CU22*$D$22 -> 243.4982 | CW22: 23 | CX22: =CW22*$D$22 -> 254.5663 | CY22: 24 | CZ22: =CY22*$D$22 -> 265.6344 | DA22: 25 | DB22: =DA22*$D$22 -> 276.7025 | DC22: =IF(C17=0,0,IF($DC$18<10,0,IF($DQ$19>25,25,IF(25<$DQ$19>15,$DQ$19)))) -> 0 | DD22: =DC22*$D$22 -> 0
B23: 51 | C23: 9999 | D23: 13.9229 | F23: =E23*$D$23 -> 0 | H23: =G23*$D$23 -> 0 | J23: =I23*$D$23 -> 0 | L23: =K23*$D$23 -> 0 | N23: =M23*$D$23 -> 0 | P23: =O23*$D$23 -> 0 | R23: =Q23*$D$23 -> 0 | T23: =S23*$D$23 -> 0 | V23: =U23*$D$23 -> 0 | X23: =W23*$D$23 -> 0 | Z23: =Y23*$D$23 -> 0 | AB23: =AA23*$D$23 -> 0 | AD23: =AC23*$D$23 -> 0 | AF23: =AE23*$D$23 -> 0 | AH23: =AG23*$D$23 -> 0 | AJ23: =AI23*$D$23 -> 0 | AL23: =AK23*$D$23 -> 0 | AN23: =AM23*$D$23 -> 0 | AP23: =AO23*$D$23 -> 0 | AR23: =AQ23*$D$23 -> 0 | AT23: =AS23*$D$23 -> 0 | AV23: =AU23*$D$23 -> 0 | AX23: =AW23*$D$23 -> 0 | AZ23: =AY23*$D$23 -> 0 | BB23: =BA23*$D$23 -> 0 | BD23: =BC23*$D$23 -> 0 | BF23: =BE23*$D$23 -> 0 | BH23: =BG23*$D$23 -> 0 | BJ23: =BI23*$D$23 -> 0 | BL23: =BK23*$D$23 -> 0 | BN23: =BM23*$D$23 -> 0 | BP23: =BO23*$D$23 -> 0 | BR23: =BQ23*$D$23 -> 0 | BT23: =BS23*$D$23 -> 0 | BV23: =BU23*$D$23 -> 0 | BX23: =BW23*$D$23 -> 0 | BZ23: =BY23*$D$23 -> 0 | CB23: =CA23*$D$23 -> 0 | CD23: =CC23*$D$23 -> 0 | CF23: =CE23*$D$23 -> 0 | CH23: =CG23*$D$23 -> 0 | CJ23: =CI23*$D$23 -> 0 | CL23: =CK23*$D$23 -> 0 | CN23: =CM23*$D$23 -> 0 | CP23: =CO23*$D$23 -> 0 | CR23: =CQ23*$D$23 -> 0 | CT23: =CS23*$D$23 -> 0 | CV23: =CU23*$D$23 -> 0 | CX23: =CW23*$D$23 -> 0 | CZ23: =CY23*$D$23 -> 0 | DB23: =DA23*$D$23 -> 0 | DC23: =IF(C17=0,0,IF($DQ$20>=0,$DQ$20)) -> 0 | DD23: =DC23*$D$23 -> 0
B24: SUBTOTAL | F24: =SUM(F20:F23) -> 0 | H24: =SUM(H20:H23) -> 6.67 | J24: =SUM(J20:J23) -> 13.34 | L24: =SUM(L20:L23) -> 20.01 | N24: =SUM(N20:N23) -> 26.68 | P24: =SUM(P20:P23) -> 33.35 | R24: =SUM(R20:R23) -> 40.02 | T24: =SUM(T20:T23) -> 46.69 | V24: =SUM(V20:V23) -> 53.36 | X24: =SUM(X20:X23) -> 60.03 | Z24: =SUM(Z20:Z23) -> 66.7 | AB24: =SUM(AB20:AB23) -> 77.7681 | AD24: =SUM(AD20:AD23) -> 88.8362 | AF24: =SUM(AF20:AF23) -> 99.9043 | AH24: =SUM(AH20:AH23) -> 110.9724 | AJ24: =SUM(AJ20:AJ23) -> 122.0405 | AL24: =SUM(AL20:AL23) -> 133.1086 | AN24: =SUM(AN20:AN23) -> 144.1767 | AP24: =SUM(AP20:AP23) -> 155.2448 | AR24: =SUM(AR20:AR23) -> 166.3129 | AT24: =SUM(AT20:AT23) -> 177.381 | AV24: =SUM(AV20:AV23) -> 188.4491 | AX24: =SUM(AX20:AX23) -> 199.5172 | AZ24: =SUM(AZ20:AZ23) -> 210.5853 | BB24: =SUM(BB20:BB23) -> 221.6534 | BD24: =SUM(BD20:BD23) -> 232.7215 | BF24: =SUM(BF20:BF23) -> 243.7896 | BH24: =SUM(BH20:BH23) -> 254.8577 | BJ24: =SUM(BJ20:BJ23) -> 265.9258 | BL24: =SUM(BL20:BL23) -> 276.9939 | BN24: =SUM(BN20:BN23) -> 288.062 | BP24: =SUM(BP20:BP23) -> 299.1301 | BR24: =SUM(BR20:BR23) -> 310.1982 | BT24: =SUM(BT20:BT23) -> 321.2663 | BV24: =SUM(BV20:BV23) -> 332.3344 | BX24: =SUM(BX20:BX23) -> 343.4025 | BZ24: =SUM(BZ20:BZ23) -> 354.4706 | CB24: =SUM(CB20:CB23) -> 365.5387 | CD24: =SUM(CD20:CD23) -> 376.6068 | CF24: =SUM(CF20:CF23) -> 387.6749 | CH24: =SUM(CH20:CH23) -> 398.743 | CJ24: 409.8111 | CL24: 420.8792 | CN24: 431.9473 | CP24: 443.0154 | CR24: 454.0835 | CT24: 465.1516 | CV24: =SUM(CV20:CV23) -> 476.2197 | CX24: =SUM(CX20:CX23) -> 487.2878 | CZ24: =SUM(CZ20:CZ23) -> 498.3559 | DB24: =SUM(DB20:DB23) -> 509.424 | DD24: 0
B25: TOTAL | F25: =IF((F24<=$D$18),$D$18,F24) -> 66.7 | H25: =IF((H24<=$D$18),$D$18,H24) -> 66.7 | J25: =IF((J24<=$D$18),$D$18,J24) -> 66.7 | L25: =IF((L24<=$D$18),$D$18,L24) -> 66.7 | N25: =IF((N24<=$D$18),$D$18,N24) -> 66.7 | P25: =IF((P24<=$D$18),$D$18,P24) -> 66.7 | R25: =IF((R24<=$D$18),$D$18,R24) -> 66.7 | T25: =IF((T24<=$D$18),$D$18,T24) -> 66.7 | V25: =IF((V24<=$D$18),$D$18,V24) -> 66.7 | X25: =IF((X24<=$D$18),$D$18,X24) -> 66.7 | Z25: =IF((Z24<=$D$18),$D$18,Z24) -> 66.7 | AB25: =IF((AB24<=$D$18),$D$18,AB24) -> 77.7681 | AD25: =IF((AD24<=$D$18),$D$18,AD24) -> 88.8362 | AF25: =IF((AF24<=$D$18),$D$18,AF24) -> 99.9043 | AH25: =IF((AH24<=$D$18),$D$18,AH24) -> 110.9724 | AJ25: =IF((AJ24<=$D$18),$D$18,AJ24) -> 122.0405 | AL25: =IF((AL24<=$D$18),$D$18,AL24) -> 133.1086 | AN25: =IF((AN24<=$D$18),$D$18,AN24) -> 144.1767 | AP25: =IF((AP24<=$D$18),$D$18,AP24) -> 155.2448 | AR25: =IF((AR24<=$D$18),$D$18,AR24) -> 166.3129 | AT25: =IF((AT24<=$D$18),$D$18,AT24) -> 177.381 | AV25: =IF((AV24<=$D$18),$D$18,AV24) -> 188.4491 | AX25: =IF((AX24<=$D$18),$D$18,AX24) -> 199.5172 | AZ25: =IF((AZ24<=$D$18),$D$18,AZ24) -> 210.5853 | BB25: =IF((BB24<=$D$18),$D$18,BB24) -> 221.6534 | BD25: =IF((BD24<=$D$18),$D$18,BD24) -> 232.7215 | BF25: =IF((BF24<=$D$18),$D$18,BF24) -> 243.7896 | BH25: =IF((BH24<=$D$18),$D$18,BH24) -> 254.8577 | BJ25: =IF((BJ24<=$D$18),$D$18,BJ24) -> 265.9258 | BL25: =IF((BL24<=$D$18),$D$18,BL24) -> 276.9939 | BN25: =IF((BN24<=$D$18),$D$18,BN24) -> 288.062 | BP25: =IF((BP24<=$D$18),$D$18,BP24) -> 299.1301 | BR25: =IF((BR24<=$D$18),$D$18,BR24) -> 310.1982 | BT25: =IF((BT24<=$D$18),$D$18,BT24) -> 321.2663 | BV25: =IF((BV24<=$D$18),$D$18,BV24) -> 332.3344 | BX25: =IF((BX24<=$D$18),$D$18,BX24) -> 343.4025 | BZ25: =IF((BZ24<=$D$18),$D$18,BZ24) -> 354.4706 | CB25: =IF((CB24<=$D$18),$D$18,CB24) -> 365.5387 | CD25: =IF((CD24<=$D$18),$D$18,CD24) -> 376.6068 | CF25: =IF((CF24<=$D$18),$D$18,CF24) -> 387.6749 | CH25: =IF((CH24<=$D$18),$D$18,CH24) -> 398.743 | CJ25: 409.8111 | CL25: 420.8792 | CN25: 431.9473 | CP25: 443.0154 | CR25: 454.0835 | CT25: 465.1516 | CV25: =IF((CV24<=$D$18),$D$18,CV24) -> 476.2197 | CX25: =IF((CX24<=$D$18),$D$18,CX24) -> 487.2878 | CZ25: =IF((CZ24<=$D$18),$D$18,CZ24) -> 498.3559 | DB25: =IF((DB24<=$D$18),$D$18,DB24) -> 509.424 | DD25: =IF(C17=0,0,IF((DD24<=$D$18),$D$18,IF(DD24>D18,DD24))) -> 0
B26: FATURAMENTO DE ÁGUA | F26: =F25 -> 66.7 | H26: =H25 -> 66.7 | J26: =J25 -> 66.7 | L26: =L25 -> 66.7 | N26: =N25 -> 66.7 | P26: =P25 -> 66.7 | R26: =R25 -> 66.7 | T26: =T25 -> 66.7 | V26: =V25 -> 66.7 | X26: =X25 -> 66.7 | Z26: =Z25 -> 66.7 | AB26: =AB25 -> 77.7681 | AD26: =AD25 -> 88.8362 | AF26: =AF25 -> 99.9043 | AH26: =AH25 -> 110.9724 | AJ26: =AJ25 -> 122.0405 | AL26: =AL25 -> 133.1086 | AN26: =AN25 -> 144.1767 | AP26: =AP25 -> 155.2448 | AR26: =AR25 -> 166.3129 | AT26: =AT25 -> 177.381 | AV26: =AV25 -> 188.4491 | AX26: =AX25 -> 199.5172 | AZ26: =AZ25 -> 210.5853 | BB26: =BB25 -> 221.6534 | BD26: =BD25 -> 232.7215 | BF26: =BF25 -> 243.7896 | BH26: =BH25 -> 254.8577 | BJ26: =BJ25 -> 265.9258 | BL26: =BL25 -> 276.9939 | BN26: =BN25 -> 288.062 | BP26: =BP25 -> 299.1301 | BR26: =BR25 -> 310.1982 | BT26: =BT25 -> 321.2663 | BV26: =BV25 -> 332.3344 | BX26: =BX25 -> 343.4025 | BZ26: =BZ25 -> 354.4706 | CB26: =CB25 -> 365.5387 | CD26: =CD25 -> 376.6068 | CF26: =CF25 -> 387.6749 | CH26: =CH25 -> 398.743 | CJ26: 409.8111 | CL26: 420.8792 | CN26: 431.9473 | CP26: 443.0154 | CR26: 454.0835 | CT26: 465.1516 | CV26: =CV25 -> 476.2197 | CX26: =CX25 -> 487.2878 | CZ26: =CZ25 -> 498.3559 | DB26: =DB25 -> 509.424 | DD26: 0
B27: FATURAMENTO ESGOTO 100% | F27: =F26 -> 66.7 | H27: =H26 -> 66.7 | J27: =J26 -> 66.7 | L27: =L26 -> 66.7 | N27: =N26 -> 66.7 | P27: =P26 -> 66.7 | R27: =R26 -> 66.7 | T27: =T26 -> 66.7 | V27: 66.7 | X27: 66.7 | Z27: 66.7 | AB27: 77.7681 | AD27: 88.8362 | AF27: 99.9043 | AH27: 110.9724 | AJ27: 122.0405 | AL27: 133.1086 | AN27: 144.1767 | AP27: 155.2448 | AR27: 166.3129 | AT27: 177.381 | AV27: 188.4491 | AX27: 199.5172 | AZ27: 210.5853 | BB27: 221.6534 | BD27: 232.7215 | BF27: 243.7896 | BH27: 254.8577 | BJ27: 265.9258 | BL27: 276.9939 | BN27: 288.062 | BP27: 299.1301 | BR27: 310.1982 | BT27: 321.2663 | BV27: 332.3344 | BX27: 343.4025 | BZ27: 354.4706 | CB27: 365.5387 | CD27: 376.6068 | CF27: 387.6749 | CH27: 398.743 | CJ27: 409.8111 | CL27: =CL26 -> 420.8792 | CN27: =CN26 -> 431.9473 | CP27: 443.0154 | CR27: 454.0835 | CT27: 465.1516 | CV27: 476.2197 | CX27: =CX26 -> 487.2878 | CZ27: =CZ26 -> 498.3559 | DB27: 509.424 | DD27: 0
B28: VALOR TOTAL DA FATURA | F28: =F26+F27 -> 133.4 | H28: =H26+H27 -> 133.4 | J28: =J26+J27 -> 133.4 | L28: =L26+L27 -> 133.4 | N28: =N26+N27 -> 133.4 | P28: =P26+P27 -> 133.4 | R28: =R26+R27 -> 133.4 | T28: =T26+T27 -> 133.4 | V28: =V26+V27 -> 133.4 | X28: =X26+X27 -> 133.4 | Z28: =Z26+Z27 -> 133.4 | AB28: =AB26+AB27 -> 155.5362 | AD28: =AD26+AD27 -> 177.6724 | AF28: =AF26+AF27 -> 199.8086 | AH28: =AH26+AH27 -> 221.9448 | AJ28: =AJ26+AJ27 -> 244.081 | AL28: =AL26+AL27 -> 266.2172 | AN28: =AN26+AN27 -> 288.3534 | AP28: =AP26+AP27 -> 310.4896 | AR28: =AR26+AR27 -> 332.6258 | AT28: =AT26+AT27 -> 354.762 | AV28: =AV26+AV27 -> 376.8982 | AX28: =AX26+AX27 -> 399.0344 | AZ28: =AZ26+AZ27 -> 421.1706 | BB28: =BB26+BB27 -> 443.3068 | BD28: =BD26+BD27 -> 465.443 | BF28: =BF26+BF27 -> 487.5792 | BH28: =BH26+BH27 -> 509.7154 | BJ28: =BJ26+BJ27 -> 531.8516 | BL28: =BL26+BL27 -> 553.9878 | BN28: =BN26+BN27 -> 576.124 | BP28: =BP26+BP27 -> 598.2602 | BR28: =BR26+BR27 -> 620.3964 | BT28: =BT26+BT27 -> 642.5326 | BV28: =BV26+BV27 -> 664.6688 | BX28: =BX26+BX27 -> 686.805 | BZ28: =BZ26+BZ27 -> 708.9412 | CB28: =CB26+CB27 -> 731.0774 | CD28: =CD26+CD27 -> 753.2136 | CF28: =CF26+CF27 -> 775.3498 | CH28: =CH26+CH27 -> 797.486 | CJ28: 819.6222 | CL28: 841.7584 | CN28: 863.8946 | CP28: 886.0308 | CR28: 908.167 | CT28: 930.3032 | CV28: =CV26+CV27 -> 952.4394 | CX28: =CX26+CX27 -> 974.5756 | CZ28: =CZ26+CZ27 -> 996.7118 | DB28: =DB26+DB27 -> 1018.848 | DD28: 0 | DI28: =DD28-DD13 -> 0
A33: 1 | B33: ECONOMIA | C33: =CALCULADORA!B6 -> 0 | D33: UNIDADES | DC33: CONSUMO: | DF33: Simulação nova estrutura tarifária
A34: COMERCIAL | B34: TFDI com RTP | D34: 29.49 | E34: 0 | G34: 1 | I34: 2 | K34: 3 | M34: 4 | O34: 5 | Q34: 6 | S34: 7 | U34: 8 | W34: 9 | Y34: 10 | AA34: 11 | AC34: 12 | AE34: 13 | AG34: 14 | AI34: 15 | AK34: 16 | AM34: 17 | AO34: 18 | AQ34: 19 | AS34: 20 | AU34: 21 | AW34: 22 | AY34: 23 | BA34: 24 | BC34: 25 | BE34: 26 | BG34: 27 | BI34: 28 | BK34: 29 | BM34: 30 | BO34: 31 | BQ34: 32 | BS34: 33 | BU34: 34 | BW34: 35 | BY34: 36 | CA34: 37 | CC34: 38 | CE34: 39 | CG34: 40 | CI34: 41 | CK34: 42 | CM34: 43 | CO34: 44 | CQ34: 45 | CS34: 46 | CU34: 47 | CW34: 48 | CY34: 49 | DA34: 50 | DC34: =CALCULADORA!B4 -> 0 | DD34: m³
B35: Faixa | D35: Valor/m³ | E35: Consumo na Faixa | F35: Valor total | G35: Consumo na Faixa | H35: Valor total | I35: Consumo na Faixa | J35: Valor total | K35: Consumo na Faixa | L35: Valor total | M35: Consumo na Faixa | N35: Valor total | O35: Consumo na Faixa | P35: Valor total | Q35: Consumo na Faixa | R35: Valor total | S35: Consumo na Faixa | T35: Valor total | U35: Consumo na Faixa | V35: Valor total | W35: Consumo na Faixa | X35: Valor total | Y35: Consumo na Faixa | Z35: Valor total | AA35: Consumo na Faixa | AB35: Valor total | AC35: Consumo na Faixa | AD35: Valor total | AE35: Consumo na Faixa | AF35: Valor total | AG35: Consumo na Faixa | AH35: Valor total | AI35: Consumo na Faixa | AJ35: Valor total | AK35: Consumo na Faixa | AL35: Valor total | AM35: Consumo na Faixa | AN35: Valor total | AO35: Consumo na Faixa | AP35: Valor total | AQ35: Consumo na Faixa | AR35: Valor total | AS35: Consumo na Faixa | AT35: Valor total | AU35: Consumo na Faixa | AV35: Valor total | AW35: Consumo na Faixa | AX35: Valor total | AY35: Consumo na Faixa | AZ35: Valor total | BA35: Consumo na Faixa | BB35: Valor total | BC35: Consumo na Faixa | BD35: Valor total | BE35: Consumo na Faixa | BF35: Valor total | BG35: Consumo na Faixa | BH35: Valor total | BI35: Consumo na Faixa | BJ35: Valor total | BK35: Consumo na Faixa | BL35: Valor total | BM35: Consumo na Faixa | BN35: Valor total | BO35: Consumo na Faixa | BP35: Valor total | BQ35: Consumo na Faixa | BR35: Valor total | BS35: Consumo na Faixa | BT35: Valor total | BU35: Consumo na Faixa | BV35: Valor total | BW35: Consumo na Faixa | BX35: Valor total | BY35: Consumo na Faixa | BZ35: Valor total | CA35: Consumo na Faixa | CB35: Valor total | CC35: Consumo na Faixa | CD35: Valor total | CE35: Consumo na Faixa | CF35: Valor total | CG35: Consumo na Faixa | CH35: Valor total | CI35: Consumo na Faixa | CJ35: Valor total | CK35: Consumo na Faixa | CL35: Valor total | CM35: Consumo na Faixa | CN35: Valor total | CO35: Consumo na Faixa | CP35: Valor total | CQ35: Consumo na Faixa | CR35: Valor total | CS35: Consumo na Faixa | CT35: Valor total | CU35: Consumo na Faixa | CV35: Valor total | CW35: Consumo na Faixa | CX35: Valor total | CY35: Consumo na Faixa | CZ35: Valor total | DA35: Consumo na Faixa | DB35: Valor total | DC35: Consumo na Faixa | DD35: Valor total | DQ35: tabela de apoio
B36: 0 | C36: 10 | D36: 4.34 | E36: 0 | F36: =E36*$D$20 -> 0 | G36: 1 | H36: =G36*$D$20 -> 6.67 | I36: 2 | J36: =I36*$D$20 -> 13.34 | K36: 3 | L36: =K36*$D$20 -> 20.01 | M36: 4 | N36: =M36*$D$20 -> 26.68 | O36: 5 | P36: =O36*$D$20 -> 33.35 | Q36: 6 | R36: =Q36*$D$20 -> 40.02 | S36: 7 | T36: =S36*$D$20 -> 46.69 | U36: 8 | V36: =U36*$D$20 -> 53.36 | W36: 9 | X36: =W36*$D$20 -> 60.03 | Y36: 10 | Z36: =Y36*$D$20 -> 66.7 | AA36: 10 | AB36: =AA36*$D$20 -> 66.7 | AC36: 10 | AD36: =AC36*$D$20 -> 66.7 | AE36: 10 | AF36: =AE36*$D$20 -> 66.7 | AG36: 10 | AH36: =AG36*$D$20 -> 66.7 | AI36: 10 | AJ36: =AI36*$D$20 -> 66.7 | AK36: 10 | AL36: =AK36*$D$20 -> 66.7 | AM36: 10 | AN36: =AM36*$D$20 -> 66.7 | AO36: 10 | AP36: =AO36*$D$20 -> 66.7 | AQ36: 10 | AR36: =AQ36*$D$20 -> 66.7 | AS36: 10 | AT36: =AS36*$D$20 -> 66.7 | AU36: 10 | AV36: =AU36*$D$20 -> 66.7 | AW36: 10 | AX36: =AW36*$D$20 -> 66.7 | AY36: 10 | AZ36: =AY36*$D$20 -> 66.7 | BA36: 10 | BB36: =BA36*$D$20 -> 66.7 | BC36: 10 | BD36: =BC36*$D$20 -> 66.7 | BE36: 10 | BF36: =BE36*$D$20 -> 66.7 | BG36: 10 | BH36: =BG36*$D$20 -> 66.7 | BI36: 10 | BJ36: =BI36*$D$20 -> 66.7 | BK36: 10 | BL36: =BK36*$D$20 -> 66.7 | BM36: 10 | BN36: =BM36*$D$20 -> 66.7 | BO36: 10 | BP36: =BO36*$D$20 -> 66.7 | BQ36: 10 | BR36: =BQ36*$D$20 -> 66.7 | BS36: 10 | BT36: =BS36*$D$20 -> 66.7 | BU36: 10 | BV36: =BU36*$D$20 -> 66.7 | BW36: 10 | BX36: =BW36*$D$20 -> 66.7 | BY36: 10 | BZ36: =BY36*$D$20 -> 66.7 | CA36: 10 | CB36: =CA36*$D$20 -> 66.7 | CC36: 10 | CD36: =CC36*$D$20 -> 66.7 | CE36: 10 | CF36: =CE36*$D$20 -> 66.7 | CG36: 10 | CH36: =CG36*$D$20 -> 66.7 | CI36: 10 | CJ36: =CI36*$D$20 -> 66.7 | CK36: 10 | CL36: =CK36*$D$20 -> 66.7 | CM36: 10 | CN36: =CM36*$D$20 -> 66.7 | CO36: 10 | CP36: =CO36*$D$20 -> 66.7 | CQ36: 10 | CR36: =CQ36*$D$20 -> 66.7 | CS36: 10 | CT36: =CS36*$D$20 -> 66.7 | CU36: 10 | CV36: =CU36*$D$20 -> 66.7 | CW36: 10 | CX36: =CW36*$D$20 -> 66.7 | CY36: 10 | CZ36: =CY36*$D$20 -> 66.7 | DA36: 10 | DB36: =DA36*$D$20 -> 66.7 | DC36: =IF((DC34)<=DQ36, DC34,DQ36) -> 0 | DD36: =DC36*$D$36 -> 0 | DH36: DQ 36 | DQ36: =10*C33 -> 0 | DR36: consumo faixa 01
B37: 11 | C37: 25 | D37: 12.18 | F37: =E37*$D$21 -> 0 | H37: =G37*$D$21 -> 0 | J37: =I37*$D$21 -> 0 | L37: =K37*$D$21 -> 0 | N37: =M37*$D$21 -> 0 | P37: =O37*$D$21 -> 0 | R37: =Q37*$D$21 -> 0 | T37: =S37*$D$21 -> 0 | V37: =U37*$D$21 -> 0 | X37: =W37*$D$21 -> 0 | Z37: =Y37*$D$21 -> 0 | AA37: 1 | AB37: =AA37*$D$21 -> 11.0681 | AC37: 2 | AD37: =AC37*$D$21 -> 22.1362 | AE37: 3 | AF37: =AE37*$D$21 -> 33.2043 | AG37: 4 | AH37: =AG37*$D$21 -> 44.2724 | AI37: 5 | AJ37: =AI37*$D$21 -> 55.3405 | AK37: 6 | AL37: =AK37*$D$21 -> 66.4086 | AM37: 7 | AN37: =AM37*$D$21 -> 77.4767 | AO37: 8 | AP37: =AO37*$D$21 -> 88.5448 | AQ37: 9 | AR37: =AQ37*$D$21 -> 99.6129 | AS37: 10 | AT37: =AS37*$D$21 -> 110.681 | AU37: 11 | AV37: =AU37*$D$21 -> 121.7491 | AW37: 12 | AX37: =AW37*$D$21 -> 132.8172 | AY37: 13 | AZ37: =AY37*$D$21 -> 143.8853 | BA37: 14 | BB37: =BA37*$D$21 -> 154.9534 | BC37: 15 | BD37: =BC37*$D$21 -> 166.0215 | BE37: 15 | BF37: =BE37*$D$21 -> 166.0215 | BG37: 15 | BH37: =BG37*$D$21 -> 166.0215 | BI37: 15 | BJ37: =BI37*$D$21 -> 166.0215 | BK37: 15 | BL37: =BK37*$D$21 -> 166.0215 | BM37: 15 | BN37: =BM37*$D$21 -> 166.0215 | BO37: 15 | BP37: =BO37*$D$21 -> 166.0215 | BQ37: 15 | BR37: =BQ37*$D$21 -> 166.0215 | BS37: 15 | BT37: =BS37*$D$21 -> 166.0215 | BU37: 15 | BV37: =BU37*$D$21 -> 166.0215 | BW37: 15 | BX37: =BW37*$D$21 -> 166.0215 | BY37: 15 | BZ37: =BY37*$D$21 -> 166.0215 | CA37: 15 | CB37: =CA37*$D$21 -> 166.0215 | CC37: 15 | CD37: =CC37*$D$21 -> 166.0215 | CE37: 15 | CF37: =CE37*$D$21 -> 166.0215 | CG37: 15 | CH37: =CG37*$D$21 -> 166.0215 | CI37: 15 | CJ37: =CI37*$D$21 -> 166.0215 | CK37: 15 | CL37: =CK37*$D$21 -> 166.0215 | CM37: 15 | CN37: =CM37*$D$21 -> 166.0215 | CO37: 15 | CP37: =CO37*$D$21 -> 166.0215 | CQ37: 15 | CR37: =CQ37*$D$21 -> 166.0215 | CS37: 15 | CT37: =CS37*$D$21 -> 166.0215 | CU37: 15 | CV37: =CU37*$D$21 -> 166.0215 | CW37: 15 | CX37: =CW37*$D$21 -> 166.0215 | CY37: 15 | CZ37: =CY37*$D$21 -> 166.0215 | DA37: 15 | DB37: =DA37*$D$21 -> 166.0215 | DC37: =IF($DC$34<$DQ$36,0,IF($DC$34>($DQ$36+$DQ$37),$DQ$37,IF($DQ$36<$DC$34>$DQ$37,$DC$34-$DQ$36))) -> 0 | DD37: =DC37*$D$37 -> 0 | DH37: DQ37 | DQ37: =15*C33 -> 0 | DR37: consumo faixa 02
B38: 26 | C38: 50 | D38: 12.18 | F38: =E38*$D$22 -> 0 | H38: =G38*$D$22 -> 0 | J38: =I38*$D$22 -> 0 | L38: =K38*$D$22 -> 0 | N38: =M38*$D$22 -> 0 | P38: =O38*$D$22 -> 0 | R38: =Q38*$D$22 -> 0 | T38: =S38*$D$22 -> 0 | V38: =U38*$D$22 -> 0 | X38: =W38*$D$22 -> 0 | Z38: =Y38*$D$22 -> 0 | AB38: =AA38*$D$22 -> 0 | AD38: =AC38*$D$22 -> 0 | AF38: =AE38*$D$22 -> 0 | AH38: =AG38*$D$22 -> 0 | AJ38: =AI38*$D$22 -> 0 | AL38: =AK38*$D$22 -> 0 | AN38: =AM38*$D$22 -> 0 | AP38: =AO38*$D$22 -> 0 | AR38: =AQ38*$D$22 -> 0 | AT38: =AS38*$D$22 -> 0 | AV38: =AU38*$D$22 -> 0 | AX38: =AW38*$D$22 -> 0 | AZ38: =AY38*$D$22 -> 0 | BB38: =BA38*$D$22 -> 0 | BD38: =BC38*$D$22 -> 0 | BE38: 1 | BF38: =BE38*$D$22 -> 11.0681 | BG38: 2 | BH38: =BG38*$D$22 -> 22.1362 | BI38: 3 | BJ38: =BI38*$D$22 -> 33.2043 | BK38: 4 | BL38: =BK38*$D$22 -> 44.2724 | BM38: 5 | BN38: =BM38*$D$22 -> 55.3405 | BO38: 6 | BP38: =BO38*$D$22 -> 66.4086 | BQ38: 7 | BR38: =BQ38*$D$22 -> 77.4767 | BS38: 8 | BT38: =BS38*$D$22 -> 88.5448 | BU38: 9 | BV38: =BU38*$D$22 -> 99.6129 | BW38: 10 | BX38: =BW38*$D$22 -> 110.681 | BY38: 11 | BZ38: =BY38*$D$22 -> 121.7491 | CA38: 12 | CB38: =CA38*$D$22 -> 132.8172 | CC38: 13 | CD38: =CC38*$D$22 -> 143.8853 | CE38: 14 | CF38: =CE38*$D$22 -> 154.9534 | CG38: 15 | CH38: =CG38*$D$22 -> 166.0215 | CI38: 16 | CJ38: =CI38*$D$22 -> 177.0896 | CK38: 17 | CL38: =CK38*$D$22 -> 188.1577 | CM38: 18 | CN38: =CM38*$D$22 -> 199.2258 | CO38: 19 | CP38: =CO38*$D$22 -> 210.2939 | CQ38: 20 | CR38: =CQ38*$D$22 -> 221.362 | CS38: 21 | CT38: =CS38*$D$22 -> 232.4301 | CU38: 22 | CV38: =CU38*$D$22 -> 243.4982 | CW38: 23 | CX38: =CW38*$D$22 -> 254.5663 | CY38: 24 | CZ38: =CY38*$D$22 -> 265.6344 | DA38: 25 | DB38: =DA38*$D$22 -> 276.7025 | DC38: =IF($DC$34<=($DQ$36+$DQ$37),0,IF($DC$34>($DQ$36+$DQ$37+DQ38),DQ38,IF($DC$34>($DQ$36+$DQ$37),$DC$34-($DC$36+$DC$37)))) -> 0 | DD38: =DC38*$D$38 -> 0 | DH38: DQ38 | DQ38: =25*C33 -> 0 | DR38: consumo faixa 03
B39: 51 | C39: 9999 | D39: 15.32 | F39: =E39*$D$23 -> 0 | H39: =G39*$D$23 -> 0 | J39: =I39*$D$23 -> 0 | L39: =K39*$D$23 -> 0 | N39: =M39*$D$23 -> 0 | P39: =O39*$D$23 -> 0 | R39: =Q39*$D$23 -> 0 | T39: =S39*$D$23 -> 0 | V39: =U39*$D$23 -> 0 | X39: =W39*$D$23 -> 0 | Z39: =Y39*$D$23 -> 0 | AB39: =AA39*$D$23 -> 0 | AD39: =AC39*$D$23 -> 0 | AF39: =AE39*$D$23 -> 0 | AH39: =AG39*$D$23 -> 0 | AJ39: =AI39*$D$23 -> 0 | AL39: =AK39*$D$23 -> 0 | AN39: =AM39*$D$23 -> 0 | AP39: =AO39*$D$23 -> 0 | AR39: =AQ39*$D$23 -> 0 | AT39: =AS39*$D$23 -> 0 | AV39: =AU39*$D$23 -> 0 | AX39: =AW39*$D$23 -> 0 | AZ39: =AY39*$D$23 -> 0 | BB39: =BA39*$D$23 -> 0 | BD39: =BC39*$D$23 -> 0 | BF39: =BE39*$D$23 -> 0 | BH39: =BG39*$D$23 -> 0 | BJ39: =BI39*$D$23 -> 0 | BL39: =BK39*$D$23 -> 0 | BN39: =BM39*$D$23 -> 0 | BP39: =BO39*$D$23 -> 0 | BR39: =BQ39*$D$23 -> 0 | BT39: =BS39*$D$23 -> 0 | BV39: =BU39*$D$23 -> 0 | BX39: =BW39*$D$23 -> 0 | BZ39: =BY39*$D$23 -> 0 | CB39: =CA39*$D$23 -> 0 | CD39: =CC39*$D$23 -> 0 | CF39: =CE39*$D$23 -> 0 | CH39: =CG39*$D$23 -> 0 | CJ39: =CI39*$D$23 -> 0 | CL39: =CK39*$D$23 -> 0 | CN39: =CM39*$D$23 -> 0 | CP39: =CO39*$D$23 -> 0 | CR39: =CQ39*$D$23 -> 0 | CT39: =CS39*$D$23 -> 0 | CV39: =CU39*$D$23 -> 0 | CX39: =CW39*$D$23 -> 0 | CZ39: =CY39*$D$23 -> 0 | DB39: =DA39*$D$23 -> 0 | DC39: =IF(C33=0,0,IF($DQ$39>=0,$DQ$39,0)) -> 0 | DD39: =DC39*$D$39 -> 0 | DQ39: =IF((DC34-DQ36-DQ37-DQ38)<=0, 0,(DC34-DQ36-DQ37-DQ38)) -> 0 | DR39: consumo acima da faixa 03
B40: TOTAL CONSUMO | F40: =SUM(F36:F39) -> 0 | H40: =SUM(H36:H39) -> 6.67 | J40: =SUM(J36:J39) -> 13.34 | L40: =SUM(L36:L39) -> 20.01 | N40: =SUM(N36:N39) -> 26.68 | P40: =SUM(P36:P39) -> 33.35 | R40: =SUM(R36:R39) -> 40.02 | T40: =SUM(T36:T39) -> 46.69 | V40: =SUM(V36:V39) -> 53.36 | X40: =SUM(X36:X39) -> 60.03 | Z40: =SUM(Z36:Z39) -> 66.7 | AB40: =SUM(AB36:AB39) -> 77.7681 | AD40: =SUM(AD36:AD39) -> 88.8362 | AF40: =SUM(AF36:AF39) -> 99.9043 | AH40: =SUM(AH36:AH39) -> 110.9724 | AJ40: =SUM(AJ36:AJ39) -> 122.0405 | AL40: =SUM(AL36:AL39) -> 133.1086 | AN40: =SUM(AN36:AN39) -> 144.1767 | AP40: =SUM(AP36:AP39) -> 155.2448 | AR40: =SUM(AR36:AR39) -> 166.3129 | AT40: =SUM(AT36:AT39) -> 177.381 | AV40: =SUM(AV36:AV39) -> 188.4491 | AX40: =SUM(AX36:AX39) -> 199.5172 | AZ40: =SUM(AZ36:AZ39) -> 210.5853 | BB40: =SUM(BB36:BB39) -> 221.6534 | BD40: =SUM(BD36:BD39) -> 232.7215 | BF40: =SUM(BF36:BF39) -> 243.7896 | BH40: =SUM(BH36:BH39) -> 254.8577 | BJ40: =SUM(BJ36:BJ39) -> 265.9258 | BL40: =SUM(BL36:BL39) -> 276.9939 | BN40: =SUM(BN36:BN39) -> 288.062 | BP40: =SUM(BP36:BP39) -> 299.1301 | BR40: =SUM(BR36:BR39) -> 310.1982 | BT40: =SUM(BT36:BT39) -> 321.2663 | BV40: =SUM(BV36:BV39) -> 332.3344 | BX40: =SUM(BX36:BX39) -> 343.4025 | BZ40: =SUM(BZ36:BZ39) -> 354.4706 | CB40: =SUM(CB36:CB39) -> 365.5387 | CD40: =SUM(CD36:CD39) -> 376.6068 | CF40: =SUM(CF36:CF39) -> 387.6749 | CH40: =SUM(CH36:CH39) -> 398.743 | CJ40: =SUM(CJ36:CJ39) -> 409.8111 | CL40: =SUM(CL36:CL39) -> 420.8792 | CN40: =SUM(CN36:CN39) -> 431.9473 | CP40: =SUM(CP36:CP39) -> 443.0154 | CR40: =SUM(CR36:CR39) -> 454.0835 | CT40: =SUM(CT36:CT39) -> 465.1516 | CV40: =SUM(CV36:CV39) -> 476.2197 | CX40: =SUM(CX36:CX39) -> 487.2878 | CZ40: =SUM(CZ36:CZ39) -> 498.3559 | DB40: =SUM(DB36:DB39) -> 509.424 | DD40: =SUM(DD36:DD39) -> 0
B41: TOTAL TFDI UNIDADES | F41: =IF((F40<=$D$18),$D$18,F40) -> 66.7 | H41: =IF((H40<=$D$18),$D$18,H40) -> 66.7 | J41: =IF((J40<=$D$18),$D$18,J40) -> 66.7 | L41: =IF((L40<=$D$18),$D$18,L40) -> 66.7 | N41: =IF((N40<=$D$18),$D$18,N40) -> 66.7 | P41: =IF((P40<=$D$18),$D$18,P40) -> 66.7 | R41: =IF((R40<=$D$18),$D$18,R40) -> 66.7 | T41: =IF((T40<=$D$18),$D$18,T40) -> 66.7 | V41: =IF((V40<=$D$18),$D$18,V40) -> 66.7 | X41: =IF((X40<=$D$18),$D$18,X40) -> 66.7 | Z41: =IF((Z40<=$D$18),$D$18,Z40) -> 66.7 | AB41: =IF((AB40<=$D$18),$D$18,AB40) -> 77.7681 | AD41: =IF((AD40<=$D$18),$D$18,AD40) -> 88.8362 | AF41: =IF((AF40<=$D$18),$D$18,AF40) -> 99.9043 | AH41: =IF((AH40<=$D$18),$D$18,AH40) -> 110.9724 | AJ41: =IF((AJ40<=$D$18),$D$18,AJ40) -> 122.0405 | AL41: =IF((AL40<=$D$18),$D$18,AL40) -> 133.1086 | AN41: =IF((AN40<=$D$18),$D$18,AN40) -> 144.1767 | AP41: =IF((AP40<=$D$18),$D$18,AP40) -> 155.2448 | AR41: =IF((AR40<=$D$18),$D$18,AR40) -> 166.3129 | AT41: =IF((AT40<=$D$18),$D$18,AT40) -> 177.381 | AV41: =IF((AV40<=$D$18),$D$18,AV40) -> 188.4491 | AX41: =IF((AX40<=$D$18),$D$18,AX40) -> 199.5172 | AZ41: =IF((AZ40<=$D$18),$D$18,AZ40) -> 210.5853 | BB41: =IF((BB40<=$D$18),$D$18,BB40) -> 221.6534 | BD41: =IF((BD40<=$D$18),$D$18,BD40) -> 232.7215 | BF41: =IF((BF40<=$D$18),$D$18,BF40) -> 243.7896 | BH41: =IF((BH40<=$D$18),$D$18,BH40) -> 254.8577 | BJ41: =IF((BJ40<=$D$18),$D$18,BJ40) -> 265.9258 | BL41: =IF((BL40<=$D$18),$D$18,BL40) -> 276.9939 | BN41: =IF((BN40<=$D$18),$D$18,BN40) -> 288.062 | BP41: =IF((BP40<=$D$18),$D$18,BP40) -> 299.1301 | BR41: =IF((BR40<=$D$18),$D$18,BR40) -> 310.1982 | BT41: =IF((BT40<=$D$18),$D$18,BT40) -> 321.2663 | BV41: =IF((BV40<=$D$18),$D$18,BV40) -> 332.3344 | BX41: =IF((BX40<=$D$18),$D$18,BX40) -> 343.4025 | BZ41: =IF((BZ40<=$D$18),$D$18,BZ40) -> 354.4706 | CB41: =IF((CB40<=$D$18),$D$18,CB40) -> 365.5387 | CD41: =IF((CD40<=$D$18),$D$18,CD40) -> 376.6068 | CF41: =IF((CF40<=$D$18),$D$18,CF40) -> 387.6749 | CH41: =IF((CH40<=$D$18),$D$18,CH40) -> 398.743 | CJ41: =IF((CJ40<=$D$18),$D$18,CJ40) -> 409.8111 | CL41: =IF((CL40<=$D$18),$D$18,CL40) -> 420.8792 | CN41: =IF((CN40<=$D$18),$D$18,CN40) -> 431.9473 | CP41: =IF((CP40<=$D$18),$D$18,CP40) -> 443.0154 | CR41: =IF((CR40<=$D$18),$D$18,CR40) -> 454.0835 | CT41: =IF((CT40<=$D$18),$D$18,CT40) -> 465.1516 | CV41: =IF((CV40<=$D$18),$D$18,CV40) -> 476.2197 | CX41: =IF((CX40<=$D$18),$D$18,CX40) -> 487.2878 | CZ41: =IF((CZ40<=$D$18),$D$18,CZ40) -> 498.3559 | DB41: =IF((DB40<=$D$18),$D$18,DB40) -> 509.424 | DD41: =D34*C33 -> 0
B42: FATURAMENTO DE ÁGUA | F42: =F41 -> 66.7 | H42: =H41 -> 66.7 | J42: =J41 -> 66.7 | L42: =L41 -> 66.7 | N42: =N41 -> 66.7 | P42: =P41 -> 66.7 | R42: =R41 -> 66.7 | T42: =T41 -> 66.7 | V42: =V41 -> 66.7 | X42: =X41 -> 66.7 | Z42: =Z41 -> 66.7 | AB42: =AB41 -> 77.7681 | AD42: =AD41 -> 88.8362 | AF42: =AF41 -> 99.9043 | AH42: =AH41 -> 110.9724 | AJ42: =AJ41 -> 122.0405 | AL42: =AL41 -> 133.1086 | AN42: =AN41 -> 144.1767 | AP42: =AP41 -> 155.2448 | AR42: =AR41 -> 166.3129 | AT42: =AT41 -> 177.381 | AV42: =AV41 -> 188.4491 | AX42: =AX41 -> 199.5172 | AZ42: =AZ41 -> 210.5853 | BB42: =BB41 -> 221.6534 | BD42: =BD41 -> 232.7215 | BF42: =BF41 -> 243.7896 | BH42: =BH41 -> 254.8577 | BJ42: =BJ41 -> 265.9258 | BL42: =BL41 -> 276.9939 | BN42: =BN41 -> 288.062 | BP42: =BP41 -> 299.1301 | BR42: =BR41 -> 310.1982 | BT42: =BT41 -> 321.2663 | BV42: =BV41 -> 332.3344 | BX42: =BX41 -> 343.4025 | BZ42: =BZ41 -> 354.4706 | CB42: =CB41 -> 365.5387 | CD42: =CD41 -> 376.6068 | CF42: =CF41 -> 387.6749 | CH42: =CH41 -> 398.743 | CJ42: =CJ41 -> 409.8111 | CL42: =CL41 -> 420.8792 | CN42: =CN41 -> 431.9473 | CP42: =CP41 -> 443.0154 | CR42: =CR41 -> 454.0835 | CT42: =CT41 -> 465.1516 | CV42: =CV41 -> 476.2197 | CX42: =CX41 -> 487.2878 | CZ42: =CZ41 -> 498.3559 | DB42: =DB41 -> 509.424 | DD42: =DD40+DD41 -> 0
B43: FATURAMENTO ESGOTO 100% | F43: =F42 -> 66.7 | H43: =H42 -> 66.7 | J43: =J42 -> 66.7 | L43: =L42 -> 66.7 | N43: =N42 -> 66.7 | P43: =P42 -> 66.7 | R43: =R42 -> 66.7 | T43: =T42 -> 66.7 | V43: 66.7 | X43: 66.7 | Z43: 66.7 | AB43: 77.7681 | AD43: 88.8362 | AF43: 99.9043 | AH43: =AH42 -> 110.9724 | AJ43: =AJ42 -> 122.0405 | AL43: =AL42 -> 133.1086 | AN43: =AN42 -> 144.1767 | AP43: 155.2448 | AR43: 166.3129 | AT43: =AT42 -> 177.381 | AV43: =AV42 -> 188.4491 | AX43: =AX42 -> 199.5172 | AZ43: =AZ42 -> 210.5853 | BB43: 221.6534 | BD43: 232.7215 | BF43: =BF42 -> 243.7896 | BH43: =BH42 -> 254.8577 | BJ43: =BJ42 -> 265.9258 | BL43: =BL42 -> 276.9939 | BN43: 288.062 | BP43: 299.1301 | BR43: =BR42 -> 310.1982 | BT43: =BT42 -> 321.2663 | BV43: =BV42 -> 332.3344 | BX43: =BX42 -> 343.4025 | BZ43: 354.4706 | CB43: 365.5387 | CD43: =CD42 -> 376.6068 | CF43: =CF42 -> 387.6749 | CH43: =CH42 -> 398.743 | CJ43: =CJ42 -> 409.8111 | CL43: 420.8792 | CN43: 431.9473 | CP43: =CP42 -> 443.0154 | CR43: =CR42 -> 454.0835 | CT43: =CT42 -> 465.1516 | CV43: =CV42 -> 476.2197 | CX43: 487.2878 | CZ43: 498.3559 | DB43: =DB42 -> 509.424 | DD43: =DD42 -> 0 | DF43: Diferença de R$ 819,78 em relação à primeira tabela (atual-sem a jurisprudência) | DI43: =DD44-DD13 -> 0
B44: VALOR TOTAL DA FATURA | F44: =F42+F43 -> 133.4 | H44: =H42+H43 -> 133.4 | J44: =J42+J43 -> 133.4 | L44: =L42+L43 -> 133.4 | N44: =N42+N43 -> 133.4 | P44: =P42+P43 -> 133.4 | R44: =R42+R43 -> 133.4 | T44: =T42+T43 -> 133.4 | V44: =V42+V43 -> 133.4 | X44: =X42+X43 -> 133.4 | Z44: =Z42+Z43 -> 133.4 | AB44: =AB42+AB43 -> 155.5362 | AD44: =AD42+AD43 -> 177.6724 | AF44: =AF42+AF43 -> 199.8086 | AH44: =AH42+AH43 -> 221.9448 | AJ44: =AJ42+AJ43 -> 244.081 | AL44: =AL42+AL43 -> 266.2172 | AN44: =AN42+AN43 -> 288.3534 | AP44: =AP42+AP43 -> 310.4896 | AR44: =AR42+AR43 -> 332.6258 | AT44: =AT42+AT43 -> 354.762 | AV44: =AV42+AV43 -> 376.8982 | AX44: =AX42+AX43 -> 399.0344 | AZ44: =AZ42+AZ43 -> 421.1706 | BB44: =BB42+BB43 -> 443.3068 | BD44: =BD42+BD43 -> 465.443 | BF44: =BF42+BF43 -> 487.5792 | BH44: =BH42+BH43 -> 509.7154 | BJ44: =BJ42+BJ43 -> 531.8516 | BL44: =BL42+BL43 -> 553.9878 | BN44: =BN42+BN43 -> 576.124 | BP44: =BP42+BP43 -> 598.2602 | BR44: =BR42+BR43 -> 620.3964 | BT44: =BT42+BT43 -> 642.5326 | BV44: =BV42+BV43 -> 664.6688 | BX44: =BX42+BX43 -> 686.805 | BZ44: =BZ42+BZ43 -> 708.9412 | CB44: =CB42+CB43 -> 731.0774 | CD44: =CD42+CD43 -> 753.2136 | CF44: =CF42+CF43 -> 775.3498 | CH44: =CH42+CH43 -> 797.486 | CJ44: =CJ42+CJ43 -> 819.6222 | CL44: =CL42+CL43 -> 841.7584 | CN44: =CN42+CN43 -> 863.8946 | CP44: =CP42+CP43 -> 886.0308 | CR44: =CR42+CR43 -> 908.167 | CT44: =CT42+CT43 -> 930.3032 | CV44: =CV42+CV43 -> 952.4394 | CX44: =CX42+CX43 -> 974.5756 | CZ44: =CZ42+CZ43 -> 996.7118 | DB44: =DB42+DB43 -> 1018.848 | DD44: =DD42+DD43 -> 0
A48: CONDOMÍNIO em FLORIANÓPOLIS (caso real)
C50: 113 ECONOMIAS
A51: RESIDENCIAL | B51: TFDI sem RTP | D51: 28.85 | E51: 0 | G51: 1 | I51: 2 | K51: 3 | M51: 4 | O51: 5 | Q51: 6 | S51: 7 | U51: 8 | W51: 9 | Y51: 10 | AA51: 11 | AC51: 12 | AE51: 13 | AG51: 14 | AI51: 15 | AK51: 16 | AM51: 17 | AO51: 18 | AQ51: 19 | AS51: 20 | AU51: 21 | AW51: 22 | AY51: 23 | BA51: 24 | BC51: 25 | BE51: 26 | BG51: 27 | BI51: 28 | BK51: 29 | BM51: 30 | BO51: 31 | BQ51: 32 | BS51: 33 | BU51: 34 | BW51: 35 | BY51: 36 | CA51: 37 | CC51: 38 | CE51: 39 | CG51: 40 | CI51: 41 | CK51: 42 | CM51: 43 | CO51: 44 | CQ51: 45 | CS51: 46 | CU51: 47 | CW51: 48 | CY51: 49 | DA51: 50 | DC51: 1080 m³
B52: Faixa | D52: Valor/m³ | E52: Consumo na Faixa | F52: Valor total | G52: Consumo na Faixa | H52: Valor total | I52: Consumo na Faixa | J52: Valor total | K52: Consumo na Faixa | L52: Valor total | M52: Consumo na Faixa | N52: Valor total | O52: Consumo na Faixa | P52: Valor total | Q52: Consumo na Faixa | R52: Valor total | S52: Consumo na Faixa | T52: Valor total | U52: Consumo na Faixa | V52: Valor total | W52: Consumo na Faixa | X52: Valor total | Y52: Consumo na Faixa | Z52: Valor total | AA52: Consumo na Faixa | AB52: Valor total | AC52: Consumo na Faixa | AD52: Valor total | AE52: Consumo na Faixa | AF52: Valor total | AG52: Consumo na Faixa | AH52: Valor total | AI52: Consumo na Faixa | AJ52: Valor total | AK52: Consumo na Faixa | AL52: Valor total | AM52: Consumo na Faixa | AN52: Valor total | AO52: Consumo na Faixa | AP52: Valor total | AQ52: Consumo na Faixa | AR52: Valor total | AS52: Consumo na Faixa | AT52: Valor total | AU52: Consumo na Faixa | AV52: Valor total | AW52: Consumo na Faixa | AX52: Valor total | AY52: Consumo na Faixa | AZ52: Valor total | BA52: Consumo na Faixa | BB52: Valor total | BC52: Consumo na Faixa | BD52: Valor total | BE52: Consumo na Faixa | BF52: Valor total | BG52: Consumo na Faixa | BH52: Valor total | BI52: Consumo na Faixa | BJ52: Valor total | BK52: Consumo na Faixa | BL52: Valor total | BM52: Consumo na Faixa | BN52: Valor total | BO52: Consumo na Faixa | BP52: Valor total | BQ52: Consumo na Faixa | BR52: Valor total | BS52: Consumo na Faixa | BT52: Valor total | BU52: Consumo na Faixa | BV52: Valor total | BW52: Consumo na Faixa | BX52: Valor total | BY52: Consumo na Faixa | BZ52: Valor total | CA52: Consumo na Faixa | CB52: Valor total | CC52: Consumo na Faixa | CD52: Valor total | CE52: Consumo na Faixa | CF52: Valor total | CG52: Consumo na Faixa | CH52: Valor total | CI52: Consumo na Faixa | CJ52: Valor total | CK52: Consumo na Faixa | CL52: Valor total | CM52: Consumo na Faixa | CN52: Valor total | CO52: Consumo na Faixa | CP52: Valor total | CQ52: Consumo na Faixa | CR52: Valor total | CS52: Consumo na Faixa | CT52: Valor total | CU52: Consumo na Faixa | CV52: Valor total | CW52: Consumo na Faixa | CX52: Valor total | CY52: Consumo na Faixa | CZ52: Valor total | DA52: Consumo na Faixa | DB52: Valor total | DC52: Consumo na Faixa | DD52: Valor total
B53: 0 | C53: 11 | D53: 1.93 | E53: 0 | F53: =E53*$D$20 -> 0 | G53: 1 | H53: =G53*$D$20 -> 6.67 | I53: 2 | J53: =I53*$D$20 -> 13.34 | K53: 3 | L53: =K53*$D$20 -> 20.01 | M53: 4 | N53: =M53*$D$20 -> 26.68 | O53: 5 | P53: =O53*$D$20 -> 33.35 | Q53: 6 | R53: =Q53*$D$20 -> 40.02 | S53: 7 | T53: =S53*$D$20 -> 46.69 | U53: 8 | V53: =U53*$D$20 -> 53.36 | W53: 9 | X53: =W53*$D$20 -> 60.03 | Y53: 10 | Z53: =Y53*$D$20 -> 66.7 | AA53: 10 | AB53: =AA53*$D$20 -> 66.7 | AC53: 10 | AD53: =AC53*$D$20 -> 66.7 | AE53: 10 | AF53: =AE53*$D$20 -> 66.7 | AG53: 10 | AH53: =AG53*$D$20 -> 66.7 | AI53: 10 | AJ53: =AI53*$D$20 -> 66.7 | AK53: 10 | AL53: =AK53*$D$20 -> 66.7 | AM53: 10 | AN53: =AM53*$D$20 -> 66.7 | AO53: 10 | AP53: =AO53*$D$20 -> 66.7 | AQ53: 10 | AR53: =AQ53*$D$20 -> 66.7 | AS53: 10 | AT53: =AS53*$D$20 -> 66.7 | AU53: 10 | AV53: =AU53*$D$20 -> 66.7 | AW53: 10 | AX53: =AW53*$D$20 -> 66.7 | AY53: 10 | AZ53: =AY53*$D$20 -> 66.7 | BA53: 10 | BB53: =BA53*$D$20 -> 66.7 | BC53: 10 | BD53: =BC53*$D$20 -> 66.7 | BE53: 10 | BF53: =BE53*$D$20 -> 66.7 | BG53: 10 | BH53: =BG53*$D$20 -> 66.7 | BI53: 10 | BJ53: =BI53*$D$20 -> 66.7 | BK53: 10 | BL53: =BK53*$D$20 -> 66.7 | BM53: 10 | BN53: =BM53*$D$20 -> 66.7 | BO53: 10 | BP53: =BO53*$D$20 -> 66.7 | BQ53: 10 | BR53: =BQ53*$D$20 -> 66.7 | BS53: 10 | BT53: =BS53*$D$20 -> 66.7 | BU53: 10 | BV53: =BU53*$D$20 -> 66.7 | BW53: 10 | BX53: =BW53*$D$20 -> 66.7 | BY53: 10 | BZ53: =BY53*$D$20 -> 66.7 | CA53: 10 | CB53: =CA53*$D$20 -> 66.7 | CC53: 10 | CD53: =CC53*$D$20 -> 66.7 | CE53: 10 | CF53: =CE53*$D$20 -> 66.7 | CG53: 10 | CH53: =CG53*$D$20 -> 66.7 | CI53: 10 | CJ53: =CI53*$D$20 -> 66.7 | CK53: 10 | CL53: =CK53*$D$20 -> 66.7 | CM53: 10 | CN53: =CM53*$D$20 -> 66.7 | CO53: 10 | CP53: =CO53*$D$20 -> 66.7 | CQ53: 10 | CR53: =CQ53*$D$20 -> 66.7 | CS53: 10 | CT53: =CS53*$D$20 -> 66.7 | CU53: 10 | CV53: =CU53*$D$20 -> 66.7 | CW53: 10 | CX53: =CW53*$D$20 -> 66.7 | CY53: 10 | CZ53: =CY53*$D$20 -> 66.7 | DA53: 10 | DB53: =DA53*$D$20 -> 66.7 | DC53: 1080 | DD53: =DC53*$D$53 -> 2084.4 | DF53: Simulação nova estrutura tarifária
B54: 11 | C54: 26 | D54: 8.64 | F54: =E54*$D$21 -> 0 | H54: =G54*$D$21 -> 0 | J54: =I54*$D$21 -> 0 | L54: =K54*$D$21 -> 0 | N54: =M54*$D$21 -> 0 | P54: =O54*$D$21 -> 0 | R54: =Q54*$D$21 -> 0 | T54: =S54*$D$21 -> 0 | V54: =U54*$D$21 -> 0 | X54: =W54*$D$21 -> 0 | Z54: =Y54*$D$21 -> 0 | AA54: 1 | AB54: =AA54*$D$21 -> 11.0681 | AC54: 2 | AD54: =AC54*$D$21 -> 22.1362 | AE54: 3 | AF54: =AE54*$D$21 -> 33.2043 | AG54: 4 | AH54: =AG54*$D$21 -> 44.2724 | AI54: 5 | AJ54: =AI54*$D$21 -> 55.3405 | AK54: 6 | AL54: =AK54*$D$21 -> 66.4086 | AM54: 7 | AN54: =AM54*$D$21 -> 77.4767 | AO54: 8 | AP54: =AO54*$D$21 -> 88.5448 | AQ54: 9 | AR54: =AQ54*$D$21 -> 99.6129 | AS54: 10 | AT54: =AS54*$D$21 -> 110.681 | AU54: 11 | AV54: =AU54*$D$21 -> 121.7491 | AW54: 12 | AX54: =AW54*$D$21 -> 132.8172 | AY54: 13 | AZ54: =AY54*$D$21 -> 143.8853 | BA54: 14 | BB54: =BA54*$D$21 -> 154.9534 | BC54: 15 | BD54: =BC54*$D$21 -> 166.0215 | BE54: 15 | BF54: =BE54*$D$21 -> 166.0215 | BG54: 15 | BH54: =BG54*$D$21 -> 166.0215 | BI54: 15 | BJ54: =BI54*$D$21 -> 166.0215 | BK54: 15 | BL54: =BK54*$D$21 -> 166.0215 | BM54: 15 | BN54: =BM54*$D$21 -> 166.0215 | BO54: 15 | BP54: =BO54*$D$21 -> 166.0215 | BQ54: 15 | BR54: =BQ54*$D$21 -> 166.0215 | BS54: 15 | BT54: =BS54*$D$21 -> 166.0215 | BU54: 15 | BV54: =BU54*$D$21 -> 166.0215 | BW54: 15 | BX54: =BW54*$D$21 -> 166.0215 | BY54: 15 | BZ54: =BY54*$D$21 -> 166.0215 | CA54: 15 | CB54: =CA54*$D$21 -> 166.0215 | CC54: 15 | CD54: =CC54*$D$21 -> 166.0215 | CE54: 15 | CF54: =CE54*$D$21 -> 166.0215 | CG54: 15 | CH54: =CG54*$D$21 -> 166.0215 | CI54: 15 | CJ54: =CI54*$D$21 -> 166.0215 | CK54: 15 | CL54: =CK54*$D$21 -> 166.0215 | CM54: 15 | CN54: =CM54*$D$21 -> 166.0215 | CO54: 15 | CP54: =CO54*$D$21 -> 166.0215 | CQ54: 15 | CR54: =CQ54*$D$21 -> 166.0215 | CS54: 15 | CT54: =CS54*$D$21 -> 166.0215 | CU54: 15 | CV54: =CU54*$D$21 -> 166.0215 | CW54: 15 | CX54: =CW54*$D$21 -> 166.0215 | CY54: 15 | CZ54: =CY54*$D$21 -> 166.0215 | DA54: 15 | DB54: =DA54*$D$21 -> 166.0215 | DD54: =DC54*$D$37 -> 0
B55: 26 | C55: 51 | D55: 12.12 | F55: =E55*$D$22 -> 0 | H55: =G55*$D$22 -> 0 | J55: =I55*$D$22 -> 0 | L55: =K55*$D$22 -> 0 | N55: =M55*$D$22 -> 0 | P55: =O55*$D$22 -> 0 | R55: =Q55*$D$22 -> 0 | T55: =S55*$D$22 -> 0 | V55: =U55*$D$22 -> 0 | X55: =W55*$D$22 -> 0 | Z55: =Y55*$D$22 -> 0 | AB55: =AA55*$D$22 -> 0 | AD55: =AC55*$D$22 -> 0 | AF55: =AE55*$D$22 -> 0 | AH55: =AG55*$D$22 -> 0 | AJ55: =AI55*$D$22 -> 0 | AL55: =AK55*$D$22 -> 0 | AN55: =AM55*$D$22 -> 0 | AP55: =AO55*$D$22 -> 0 | AR55: =AQ55*$D$22 -> 0 | AT55: =AS55*$D$22 -> 0 | AV55: =AU55*$D$22 -> 0 | AX55: =AW55*$D$22 -> 0 | AZ55: =AY55*$D$22 -> 0 | BB55: =BA55*$D$22 -> 0 | BD55: =BC55*$D$22 -> 0 | BE55: 1 | BF55: =BE55*$D$22 -> 11.0681 | BG55: 2 | BH55: =BG55*$D$22 -> 22.1362 | BI55: 3 | BJ55: =BI55*$D$22 -> 33.2043 | BK55: 4 | BL55: =BK55*$D$22 -> 44.2724 | BM55: 5 | BN55: =BM55*$D$22 -> 55.3405 | BO55: 6 | BP55: =BO55*$D$22 -> 66.4086 | BQ55: 7 | BR55: =BQ55*$D$22 -> 77.4767 | BS55: 8 | BT55: =BS55*$D$22 -> 88.5448 | BU55: 9 | BV55: =BU55*$D$22 -> 99.6129 | BW55: 10 | BX55: =BW55*$D$22 -> 110.681 | BY55: 11 | BZ55: =BY55*$D$22 -> 121.7491 | CA55: 12 | CB55: =CA55*$D$22 -> 132.8172 | CC55: 13 | CD55: =CC55*$D$22 -> 143.8853 | CE55: 14 | CF55: =CE55*$D$22 -> 154.9534 | CG55: 15 | CH55: =CG55*$D$22 -> 166.0215 | CI55: 16 | CJ55: =CI55*$D$22 -> 177.0896 | CK55: 17 | CL55: =CK55*$D$22 -> 188.1577 | CM55: 18 | CN55: =CM55*$D$22 -> 199.2258 | CO55: 19 | CP55: =CO55*$D$22 -> 210.2939 | CQ55: 20 | CR55: =CQ55*$D$22 -> 221.362 | CS55: 21 | CT55: =CS55*$D$22 -> 232.4301 | CU55: 22 | CV55: =CU55*$D$22 -> 243.4982 | CW55: 23 | CX55: =CW55*$D$22 -> 254.5663 | CY55: 24 | CZ55: =CY55*$D$22 -> 265.6344 | DA55: 25 | DB55: =DA55*$D$22 -> 276.7025 | DD55: =DC55*$D$38 -> 0
B56: 51 | C56: 9999 | D56: 15.19 | F56: =E56*$D$23 -> 0 | H56: =G56*$D$23 -> 0 | J56: =I56*$D$23 -> 0 | L56: =K56*$D$23 -> 0 | N56: =M56*$D$23 -> 0 | P56: =O56*$D$23 -> 0 | R56: =Q56*$D$23 -> 0 | T56: =S56*$D$23 -> 0 | V56: =U56*$D$23 -> 0 | X56: =W56*$D$23 -> 0 | Z56: =Y56*$D$23 -> 0 | AB56: =AA56*$D$23 -> 0 | AD56: =AC56*$D$23 -> 0 | AF56: =AE56*$D$23 -> 0 | AH56: =AG56*$D$23 -> 0 | AJ56: =AI56*$D$23 -> 0 | AL56: =AK56*$D$23 -> 0 | AN56: =AM56*$D$23 -> 0 | AP56: =AO56*$D$23 -> 0 | AR56: =AQ56*$D$23 -> 0 | AT56: =AS56*$D$23 -> 0 | AV56: =AU56*$D$23 -> 0 | AX56: =AW56*$D$23 -> 0 | AZ56: =AY56*$D$23 -> 0 | BB56: =BA56*$D$23 -> 0 | BD56: =BC56*$D$23 -> 0 | BF56: =BE56*$D$23 -> 0 | BH56: =BG56*$D$23 -> 0 | BJ56: =BI56*$D$23 -> 0 | BL56: =BK56*$D$23 -> 0 | BN56: =BM56*$D$23 -> 0 | BP56: =BO56*$D$23 -> 0 | BR56: =BQ56*$D$23 -> 0 | BT56: =BS56*$D$23 -> 0 | BV56: =BU56*$D$23 -> 0 | BX56: =BW56*$D$23 -> 0 | BZ56: =BY56*$D$23 -> 0 | CB56: =CA56*$D$23 -> 0 | CD56: =CC56*$D$23 -> 0 | CF56: =CE56*$D$23 -> 0 | CH56: =CG56*$D$23 -> 0 | CJ56: =CI56*$D$23 -> 0 | CL56: =CK56*$D$23 -> 0 | CN56: =CM56*$D$23 -> 0 | CP56: =CO56*$D$23 -> 0 | CR56: =CQ56*$D$23 -> 0 | CT56: =CS56*$D$23 -> 0 | CV56: =CU56*$D$23 -> 0 | CX56: =CW56*$D$23 -> 0 | CZ56: =CY56*$D$23 -> 0 | DB56: =DA56*$D$23 -> 0 | DD56: =DC56*$D$39 -> 0
B57: TOTAL CONSUMO | F57: =SUM(F53:F56) -> 0 | H57: =SUM(H53:H56) -> 6.67 | J57: =SUM(J53:J56) -> 13.34 | L57: =SUM(L53:L56) -> 20.01 | N57: =SUM(N53:N56) -> 26.68 | P57: =SUM(P53:P56) -> 33.35 | R57: =SUM(R53:R56) -> 40.02 | T57: =SUM(T53:T56) -> 46.69 | V57: =SUM(V53:V56) -> 53.36 | X57: =SUM(X53:X56) -> 60.03 | Z57: =SUM(Z53:Z56) -> 66.7 | AB57: =SUM(AB53:AB56) -> 77.7681 | AD57: =SUM(AD53:AD56) -> 88.8362 | AF57: =SUM(AF53:AF56) -> 99.9043 | AH57: =SUM(AH53:AH56) -> 110.9724 | AJ57: =SUM(AJ53:AJ56) -> 122.0405 | AL57: =SUM(AL53:AL56) -> 133.1086 | AN57: =SUM(AN53:AN56) -> 144.1767 | AP57: =SUM(AP53:AP56) -> 155.2448 | AR57: =SUM(AR53:AR56) -> 166.3129 | AT57: =SUM(AT53:AT56) -> 177.381 | AV57: =SUM(AV53:AV56) -> 188.4491 | AX57: =SUM(AX53:AX56) -> 199.5172 | AZ57: =SUM(AZ53:AZ56) -> 210.5853 | BB57: =SUM(BB53:BB56) -> 221.6534 | BD57: =SUM(BD53:BD56) -> 232.7215 | BF57: =SUM(BF53:BF56) -> 243.7896 | BH57: =SUM(BH53:BH56) -> 254.8577 | BJ57: =SUM(BJ53:BJ56) -> 265.9258 | BL57: =SUM(BL53:BL56) -> 276.9939 | BN57: =SUM(BN53:BN56) -> 288.062 | BP57: =SUM(BP53:BP56) -> 299.1301 | BR57: =SUM(BR53:BR56) -> 310.1982 | BT57: =SUM(BT53:BT56) -> 321.2663 | BV57: =SUM(BV53:BV56) -> 332.3344 | BX57: =SUM(BX53:BX56) -> 343.4025 | BZ57: =SUM(BZ53:BZ56) -> 354.4706 | CB57: =SUM(CB53:CB56) -> 365.5387 | CD57: =SUM(CD53:CD56) -> 376.6068 | CF57: =SUM(CF53:CF56) -> 387.6749 | CH57: =SUM(CH53:CH56) -> 398.743 | CJ57: =SUM(CJ53:CJ56) -> 409.8111 | CL57: =SUM(CL53:CL56) -> 420.8792 | CN57: =SUM(CN53:CN56) -> 431.9473 | CP57: =SUM(CP53:CP56) -> 443.0154 | CR57: =SUM(CR53:CR56) -> 454.0835 | CT57: =SUM(CT53:CT56) -> 465.1516 | CV57: =SUM(CV53:CV56) -> 476.2197 | CX57: =SUM(CX53:CX56) -> 487.2878 | CZ57: =SUM(CZ53:CZ56) -> 498.3559 | DB57: =SUM(DB53:DB56) -> 509.424 | DD57: =SUM(DD53:DD56) -> 2084.4
B58: TOTAL TFDI 113 economias | F58: =IF((F57<=$D$18),$D$18,F57) -> 66.7 | H58: =IF((H57<=$D$18),$D$18,H57) -> 66.7 | J58: =IF((J57<=$D$18),$D$18,J57) -> 66.7 | L58: =IF((L57<=$D$18),$D$18,L57) -> 66.7 | N58: =IF((N57<=$D$18),$D$18,N57) -> 66.7 | P58: =IF((P57<=$D$18),$D$18,P57) -> 66.7 | R58: =IF((R57<=$D$18),$D$18,R57) -> 66.7 | T58: =IF((T57<=$D$18),$D$18,T57) -> 66.7 | V58: =IF((V57<=$D$18),$D$18,V57) -> 66.7 | X58: =IF((X57<=$D$18),$D$18,X57) -> 66.7 | Z58: =IF((Z57<=$D$18),$D$18,Z57) -> 66.7 | AB58: =IF((AB57<=$D$18),$D$18,AB57) -> 77.7681 | AD58: =IF((AD57<=$D$18),$D$18,AD57) -> 88.8362 | AF58: =IF((AF57<=$D$18),$D$18,AF57) -> 99.9043 | AH58: =IF((AH57<=$D$18),$D$18,AH57) -> 110.9724 | AJ58: =IF((AJ57<=$D$18),$D$18,AJ57) -> 122.0405 | AL58: =IF((AL57<=$D$18),$D$18,AL57) -> 133.1086 | AN58: =IF((AN57<=$D$18),$D$18,AN57) -> 144.1767 | AP58: =IF((AP57<=$D$18),$D$18,AP57) -> 155.2448 | AR58: =IF((AR57<=$D$18),$D$18,AR57) -> 166.3129 | AT58: =IF((AT57<=$D$18),$D$18,AT57) -> 177.381 | AV58: =IF((AV57<=$D$18),$D$18,AV57) -> 188.4491 | AX58: =IF((AX57<=$D$18),$D$18,AX57) -> 199.5172 | AZ58: =IF((AZ57<=$D$18),$D$18,AZ57) -> 210.5853 | BB58: =IF((BB57<=$D$18),$D$18,BB57) -> 221.6534 | BD58: =IF((BD57<=$D$18),$D$18,BD57) -> 232.7215 | BF58: =IF((BF57<=$D$18),$D$18,BF57) -> 243.7896 | BH58: =IF((BH57<=$D$18),$D$18,BH57) -> 254.8577 | BJ58: =IF((BJ57<=$D$18),$D$18,BJ57) -> 265.9258 | BL58: =IF((BL57<=$D$18),$D$18,BL57) -> 276.9939 | BN58: =IF((BN57<=$D$18),$D$18,BN57) -> 288.062 | BP58: =IF((BP57<=$D$18),$D$18,BP57) -> 299.1301 | BR58: =IF((BR57<=$D$18),$D$18,BR57) -> 310.1982 | BT58: =IF((BT57<=$D$18),$D$18,BT57) -> 321.2663 | BV58: =IF((BV57<=$D$18),$D$18,BV57) -> 332.3344 | BX58: =IF((BX57<=$D$18),$D$18,BX57) -> 343.4025 | BZ58: =IF((BZ57<=$D$18),$D$18,BZ57) -> 354.4706 | CB58: =IF((CB57<=$D$18),$D$18,CB57) -> 365.5387 | CD58: =IF((CD57<=$D$18),$D$18,CD57) -> 376.6068 | CF58: =IF((CF57<=$D$18),$D$18,CF57) -> 387.6749 | CH58: =IF((CH57<=$D$18),$D$18,CH57) -> 398.743 | CJ58: =IF((CJ57<=$D$18),$D$18,CJ57) -> 409.8111 | CL58: =IF((CL57<=$D$18),$D$18,CL57) -> 420.8792 | CN58: =IF((CN57<=$D$18),$D$18,CN57) -> 431.9473 | CP58: =IF((CP57<=$D$18),$D$18,CP57) -> 443.0154 | CR58: =IF((CR57<=$D$18),$D$18,CR57) -> 454.0835 | CT58: =IF((CT57<=$D$18),$D$18,CT57) -> 465.1516 | CV58: =IF((CV57<=$D$18),$D$18,CV57) -> 476.2197 | CX58: =IF((CX57<=$D$18),$D$18,CX57) -> 487.2878 | CZ58: =IF((CZ57<=$D$18),$D$18,CZ57) -> 498.3559 | DB58: =IF((DB57<=$D$18),$D$18,DB57) -> 509.424 | DD58: =D51*113 -> 3260.05
B59: FATURAMENTO DE ÁGUA | F59: =F58 -> 66.7 | H59: =H58 -> 66.7 | J59: =J58 -> 66.7 | L59: =L58 -> 66.7 | N59: =N58 -> 66.7 | P59: =P58 -> 66.7 | R59: =R58 -> 66.7 | T59: =T58 -> 66.7 | V59: =V58 -> 66.7 | X59: =X58 -> 66.7 | Z59: =Z58 -> 66.7 | AB59: =AB58 -> 77.7681 | AD59: =AD58 -> 88.8362 | AF59: =AF58 -> 99.9043 | AH59: =AH58 -> 110.9724 | AJ59: =AJ58 -> 122.0405 | AL59: =AL58 -> 133.1086 | AN59: =AN58 -> 144.1767 | AP59: =AP58 -> 155.2448 | AR59: =AR58 -> 166.3129 | AT59: =AT58 -> 177.381 | AV59: =AV58 -> 188.4491 | AX59: =AX58 -> 199.5172 | AZ59: =AZ58 -> 210.5853 | BB59: =BB58 -> 221.6534 | BD59: =BD58 -> 232.7215 | BF59: =BF58 -> 243.7896 | BH59: =BH58 -> 254.8577 | BJ59: =BJ58 -> 265.9258 | BL59: =BL58 -> 276.9939 | BN59: =BN58 -> 288.062 | BP59: =BP58 -> 299.1301 | BR59: =BR58 -> 310.1982 | BT59: =BT58 -> 321.2663 | BV59: =BV58 -> 332.3344 | BX59: =BX58 -> 343.4025 | BZ59: =BZ58 -> 354.4706 | CB59: =CB58 -> 365.5387 | CD59: =CD58 -> 376.6068 | CF59: =CF58 -> 387.6749 | CH59: =CH58 -> 398.743 | CJ59: =CJ58 -> 409.8111 | CL59: =CL58 -> 420.8792 | CN59: =CN58 -> 431.9473 | CP59: =CP58 -> 443.0154 | CR59: =CR58 -> 454.0835 | CT59: =CT58 -> 465.1516 | CV59: =CV58 -> 476.2197 | CX59: =CX58 -> 487.2878 | CZ59: =CZ58 -> 498.3559 | DB59: =DB58 -> 509.424 | DD59: =DD57+DD58 -> 5344.45
B60: FATURAMENTO ESGOTO 100% | F60: =F59 -> 66.7 | H60: =H59 -> 66.7 | J60: =J59 -> 66.7 | L60: =L59 -> 66.7 | N60: =N59 -> 66.7 | P60: =P59 -> 66.7 | R60: =R59 -> 66.7 | T60: =T59 -> 66.7 | V60: 66.7 | X60: 66.7 | Z60: 66.7 | AB60: 77.7681 | AD60: 88.8362 | AF60: 99.9043 | AH60: 110.9724 | AJ60: 122.0405 | AL60: 133.1086 | AN60: 144.1767 | AP60: 155.2448 | AR60: 166.3129 | AT60: 177.381 | AV60: 188.4491 | AX60: 199.5172 | AZ60: 210.5853 | BB60: 221.6534 | BD60: 232.7215 | BF60: 243.7896 | BH60: 254.8577 | BJ60: 265.9258 | BL60: 276.9939 | BN60: 288.062 | BP60: 299.1301 | BR60: 310.1982 | BT60: 321.2663 | BV60: 332.3344 | BX60: 343.4025 | BZ60: 354.4706 | CB60: 365.5387 | CD60: 376.6068 | CF60: 387.6749 | CH60: 398.743 | CJ60: 409.8111 | CL60: 420.8792 | CN60: 431.9473 | CP60: 443.0154 | CR60: 454.0835 | CT60: 465.1516 | CV60: 476.2197 | CX60: 487.2878 | CZ60: 498.3559 | DB60: 509.424 | DD60: =DD59 -> 5344.45 | DF60: Diferença de R$ 735,86 | DI60: =DD61-DD13 -> 10688.9
B61: VALOR TOTAL DA FATURA | F61: =F59+F60 -> 133.4 | H61: =H59+H60 -> 133.4 | J61: =J59+J60 -> 133.4 | L61: =L59+L60 -> 133.4 | N61: =N59+N60 -> 133.4 | P61: =P59+P60 -> 133.4 | R61: =R59+R60 -> 133.4 | T61: =T59+T60 -> 133.4 | V61: =V59+V60 -> 133.4 | X61: =X59+X60 -> 133.4 | Z61: =Z59+Z60 -> 133.4 | AB61: =AB59+AB60 -> 155.5362 | AD61: =AD59+AD60 -> 177.6724 | AF61: =AF59+AF60 -> 199.8086 | AH61: =AH59+AH60 -> 221.9448 | AJ61: =AJ59+AJ60 -> 244.081 | AL61: =AL59+AL60 -> 266.2172 | AN61: =AN59+AN60 -> 288.3534 | AP61: =AP59+AP60 -> 310.4896 | AR61: =AR59+AR60 -> 332.6258 | AT61: =AT59+AT60 -> 354.762 | AV61: =AV59+AV60 -> 376.8982 | AX61: =AX59+AX60 -> 399.0344 | AZ61: =AZ59+AZ60 -> 421.1706 | BB61: =BB59+BB60 -> 443.3068 | BD61: =BD59+BD60 -> 465.443 | BF61: =BF59+BF60 -> 487.5792 | BH61: =BH59+BH60 -> 509.7154 | BJ61: =BJ59+BJ60 -> 531.8516 | BL61: =BL59+BL60 -> 553.9878 | BN61: =BN59+BN60 -> 576.124 | BP61: =BP59+BP60 -> 598.2602 | BR61: =BR59+BR60 -> 620.3964 | BT61: =BT59+BT60 -> 642.5326 | BV61: =BV59+BV60 -> 664.6688 | BX61: =BX59+BX60 -> 686.805 | BZ61: =BZ59+BZ60 -> 708.9412 | CB61: =CB59+CB60 -> 731.0774 | CD61: =CD59+CD60 -> 753.2136 | CF61: =CF59+CF60 -> 775.3498 | CH61: =CH59+CH60 -> 797.486 | CJ61: =CJ59+CJ60 -> 819.6222 | CL61: =CL59+CL60 -> 841.7584 | CN61: =CN59+CN60 -> 863.8946 | CP61: =CP59+CP60 -> 886.0308 | CR61: =CR59+CR60 -> 908.167 | CT61: =CT59+CT60 -> 930.3032 | CV61: =CV59+CV60 -> 952.4394 | CX61: =CX59+CX60 -> 974.5756 | CZ61: =CZ59+CZ60 -> 996.7118 | DB61: =DB59+DB60 -> 1018.848 | DD61: =DD59+DD60 -> 10688.9
